Workbook

Sheet Aukce z PL
A1: PL-DE(50Hz) | H1: PL-CZ | O1: PL-SK | V1: CZ-DE(50Hz) | AC1: CZ-DE(Tennet)
A3: Allocateded Capacity | D3: True Price | H3: Allocateded Capacity | K3: True Price | O3: Allocateded Capacity | R3: True Price | V3: Allocateded Capacity | Y3: True Price | AC3: Allocateded Capacity | AF3: SP
A4: 400 | D4: =IF((AG8+AG5)>1000,0,AG8+AG5) -> 0 | H4: 380 | K4: =IF((AG5+AG4)>1000,0,AG5+AG4) -> 0 | O4: 825 | R4: =IF((AG5+AG6)>1000,0,AG5+AG6) -> 0 | V4: 1120 | Y4: =IF((AG7)>1000,0,AG7) -> 0.01 | AC4: 1319 | AF4: PL-CZ | AG4: =IF(H4<AJ23,0,H8) -> 0 | AL4: DE
A5: Welfare | H5: Welfare | O5: Welfare | V5: Welfare | AA5: AC CZ-DE | AC5: Welfare | AF5: PL-DE(50Hz)+CZ+SK | AG5: =IF(AI9<AJ24,0,MIN(IF(A4>0,A8,99999),IF(H4>0,H8,999999),IF(O4>0,O8,9999999))) -> 0 | AL5: =OR(A4=A10,A4=AM24) -> TRUE | AN5: CZ-DE
A6: =SUMIF(E12:E70,">0") -> 2.2 | H6: =SUMIF(L12:L70,">0") -> 4.85 | O6: =SUMIF(S12:S70,">0") -> 1.25 | V6: =SUMIF(Z12:Z70,">0") -> 169.7 | AA6: =V4+AC4 -> 2439 | AC6: =SUMIF(AG12:AG70,">0") -> 421.49 | AF6: PL-SK | AG6: =IF(O4<AJ25,0,O8) -> 0 | AI6: Total Welfare | AK6: Tech. Prof | AL6: SK | AN6: =OR(AA6=AJ26,AND(V4=V10,AC4=AC10)) -> TRUE
A7: Price | H7: Price | O7: Price | V7: Price | AC7: Price | AF7: CZ-DE | AG7: =IF(AA6<AJ26,0,MIN(IF(V4>0,V8,99999),IF(AC4>0,AC8,99999))) -> 0.01 | AI7: =A6+H6+O6+V6+AC6 -> 599.49 | AK7: =AND(TRUE,AI9=AJ24) -> FALSE | AL7: =OR(O4=AJ25,O4=O10) -> TRUE
A8: =MAX(D12:D101) -> 0 | H8: =MAX(K12:K101) -> 0 | O8: =MAX(R12:R101) -> 0 | V8: =MAX(Y12:Y101) -> 0.01 | AC8: =MAX(AF12:AF101) -> 0.01 | AF8: PL-DE | AG8: =IF(A4<AM24,0,A8) -> 0 | AI8: PL-DE(50Hz)+CZ+SK | AL8: CZ
AI9: =A4+H4+O4 -> 1605 | AL9: =OR(H4=AJ23,H4=H10) -> TRUE
A10: =MAX(A12:A101) -> 400 | H10: =MAX(H12:H101) -> 380 | O10: =MAX(O12:O101) -> 825 | V10: =MAX(V12:V101) -> 2748 | AC10: =MAX(AC12:AC101) -> 2921
A11: Bid Quantity Cumulative | B11: Bid Price | C11: Bid Quantity | D11: Price Help | E11: Welfare | H11: Bid Quantity Cumulative | I11: Bid Price | J11: Bid Quantity | K11: Price Help | L11: Welfare | O11: Bid Quantity Cumulative | P11: Bid Price | Q11: Bid Quantity | R11: Price Help | S11: Welfare | V11: Bid Quantity Cumulative | W11: Bid Price | X11: Bid Quantity | Y11: Price Help | Z11: Welfare | AC11: Bid Quantity Cumulative | AD11: Bid Price | AE11: Bid Quantity | AF11: Price Help | AG11: Welfare
A12: 25 | B12: 0.05 | C12: =IF(A11>A12,A12,A12-A11) -> 25 | D12: =IF($A$4<=A12,B12,"") ->  | E12: =IF($A$4>=A12,C12*B12,$A$4*B12) -> 1.25 | H12: 75 | I12: 0.05 | J12: =IF(H11>H12,H12,H12-H11) -> 75 | K12: =IF($H$4<=H12,I12,"") ->  | L12: =IF($H$4>=H12,J12*I12,$H$4*I12) -> 3.75 | O12: 25 | P12: 0.05 | Q12: =IF(O11>O12,O12,O12-O11) -> 25 | R12: =IF($O$4<=O12,P12,"") ->  | S12: =IF($O$4>=O12,Q12*P12,$O$4*P12) -> 1.25 | V12: 30 | W12: 0.76 | X12: =IF(V11>V12,V12,V12-V11) -> 30 | Y12: =IF($V$4<=V12,W12,"") ->  | Z12: =IF($V$4>=V12,X12*W12,$V$4*W12) -> 22.8 | AC12: 75 | AD12: 3 | AE12: =IF(AC11>AC12,AC12,AC12-AC11) -> 75 | AF12: =IF($AC$4<=AC12,AD12,"") ->  | AG12: =IF($AC$4>=AC12,AE12*AD12,($AC$4-AC11)*AD12) -> 225
A13: 40 | B13: 0.02 | C13: =IF(A12>A13,A13,A13-A12) -> 15 | D13: =IF($A$4<=A13,B13,"") ->  | E13: =IF($A$4>=A13,C13*B13,($A$4-A12)*B13) -> 0.3 | H13: 130 | I13: 0.02 | J13: =IF(H12>H13,H13,H13-H12) -> 55 | K13: =IF($H$4<=H13,I13,"") ->  | L13: =IF($H$4>=H13,J13*I13,($H$4-H12)*I13) -> 1.1 | O13: 825 | P13: 0 | Q13: =IF(O12>O13,O13,O13-O12) -> 800 | R13: =IF($O$4<=O13,P13,"") -> 0 | S13: =IF($O$4>=O13,Q13*P13,($O$4-O12)*P13) -> 0 | V13: 80 | W13: 0.7 | X13: =IF(V12>V13,V13,V13-V12) -> 50 | Y13: =IF($V$4<=V13,W13,"") ->  | Z13: =IF($V$4>=V13,X13*W13,($V$4-V12)*W13) -> 35 | AC13: 105 | AD13: 0.76 | AE13: =IF(AC12>AC13,AC13,AC13-AC12) -> 30 | AF13: =IF($AC$4<=AC13,AD13,"") ->  | AG13: 22.8
A14: 105 | B14: 0.01 | C14: 65 | E14: =IF($A$4>=A14,C14*B14,($A$4-A13)*B14) -> 0.65 | H14: 380 | I14: 0 | J14: 250 | K14: 0 | L14: 0 | Q14: 0 | S14: 0 | V14: 95 | W14: 0.63 | X14: 15 | Z14: 9.45 | AC14: 155 | AD14: 0.7 | AE14: 50 | AG14: 35
A15: 400 | B15: 0 | C15: 295 | D15: 0 | E15: 0 | J15: 0 | L15: 0 | Q15: 0 | S15: 0 | V15: 125 | W15: 0.56 | X15: 30 | Z15: 16.8 | AC15: 170 | AD15: 0.63 | AE15: 15 | AG15: 9.45
C16: 0 | E16: 0 | J16: 0 | L16: 0 | Q16: 0 | S16: 0 | V16: 145 | W16: 0.41 | X16: 20 | Z16: 8.2 | AC16: 220 | AD16: 0.5 | AE16: 50 | AG16: 25
C17: 0 | E17: 0 | J17: 0 | L17: 0 | Q17: 0 | S17: 0 | V17: 165 | W17: 0.31 | X17: 20 | Z17: 6.2 | AC17: 250 | AD17: 0.45 | AE17: 30 | AG17: 13.5
C18: 0 | E18: 0 | J18: 0 | L18: 0 | Q18: 0 | S18: 0 | V18: 190 | W18: 0.26 | X18: 25 | Z18: 6.5 | AC18: 270 | AD18: 0.41 | AE18: 20 | AG18: 8.2
C19: 0 | E19: 0 | J19: 0 | L19: 0 | Q19: 0 | S19: 0 | V19: 205 | W19: 0.23 | X19: 15 | Z19: 3.45 | AC19: 290 | AD19: 0.31 | AE19: 20 | AG19: 6.2
C20: 0 | E20: 0 | J20: 0 | L20: 0 | Q20: 0 | S20: 0 | V20: 305 | W20: 0.21 | X20: 100 | Z20: 21 | AC20: 315 | AD20: 0.26 | AE20: 25 | AG20: 6.5
C21: 0 | E21: 0 | J21: 0 | L21: 0 | Q21: 0 | S21: 0 | V21: 320 | W21: 0.17 | X21: 15 | Z21: 2.55 | AC21: 330 | AD21: 0.23 | AE21: 15 | AG21: 3.45
C22: 0 | E22: 0 | J22: 0 | L22: 0 | Q22: 0 | S22: 0 | V22: 345 | W22: 0.16 | X22: 25 | Z22: 4 | AC22: 430 | AD22: 0.21 | AE22: 100 | AG22: 21 | AI22: Offered Capacity | AL22: CZ-DE(TenneT) | AM22: 1627
C23: 0 | E23: 0 | J23: 0 | L23: 0 | Q23: 0 | S23: 0 | V23: 395 | W23: 0.15 | X23: 50 | Z23: 7.5 | AC23: 450 | AD23: 0.2 | AE23: 20 | AG23: 4 | AI23: PL-CZ | AJ23: 900 | AL23: PL+CZ-DE(50Hz) | AM23: 1624
C24: 0 | E24: 0 | J24: 0 | L24: 0 | Q24: 0 | S24: 0 | V24: 445 | W24: 0.11 | X24: 50 | Z24: 5.5 | AC24: 475 | AD24: 0.16 | AE24: 25 | AG24: =IF($AC$4>=AC24,AE24*AD24,($AC$4-AC23)*AD24) -> 4 | AI24: PL-DE(50Hz)+CZ+SK | AJ24: 1800 | AL24: PL-DE | AM24: =0.5*AM23 -> 812
C25: 0 | E25: 0 | J25: 0 | L25: 0 | Q25: 0 | S25: 0 | V25: 470 | W25: 0.07 | X25: 25 | Z25: 1.75 | AC25: 525 | AD25: 0.15 | AE25: 50 | AG25: 7.5 | AI25: PL-SK | AJ25: 550
C26: 0 | E26: 0 | J26: 0 | L26: 0 | Q26: 0 | S26: 0 | V26: 520 | W26: 0.06 | X26: 50 | Z26: 3 | AC26: 540 | AD26: 0.14 | AE26: 15 | AG26: 2.1 | AI26: CZ-DE | AJ26: =AM22+0.5*AM23 -> 2439
C27: 0 | E27: 0 | J27: 0 | L27: 0 | Q27: 0 | S27: 0 | V27: 590 | W27: 0.05 | X27: 70 | Z27: 3.5 | AC27: 565 | AD27: 0.11 | AE27: 25 | AG27: 2.75
C28: 0 | E28: 0 | J28: 0 | L28: 0 | Q28: 0 | S28: 0 | V28: 695 | W28: 0.04 | X28: 105 | Z28: 4.2 | AC28: 590 | AD28: 0.1 | AE28: 25 | AG28: 2.5
C29: 0 | E29: 0 | J29: 0 | L29: 0 | Q29: 0 | S29: 0 | V29: 855 | W29: 0.03 | X29: 160 | Z29: 4.8 | AC29: 615 | AD29: 0.08 | AE29: 25 | AG29: 2
C30: 0 | E30: 0 | J30: 0 | L30: 0 | Q30: 0 | S30: 0 | V30: 940 | W30: 0.02 | X30: 85 | Z30: 1.7 | AC30: 665 | AD30: 0.06 | AE30: 50 | AG30: 3
C31: 0 | E31: 0 | J31: 0 | L31: 0 | Q31: 0 | S31: 0 | V31: 1125 | W31: 0.01 | X31: 185 | Y31: 0.01 | Z31: 1.8 | AC31: 710 | AD31: 0.05 | AE31: 45 | AG31: 2.25
C32: 0 | E32: 0 | J32: 0 | L32: 0 | Q32: 0 | S32: 0 | V32: 2748 | W32: 0 | X32: 1623 | Y32: 0 | Z32: 0 | AC32: 865 | AD32: 0.04 | AE32: 155 | AG32: 6.2
C33: 0 | E33: 0 | J33: 0 | L33: 0 | Q33: 0 | S33: 0 | X33: 0 | Z33: 0 | AC33: 1025 | AD33: 0.03 | AE33: 160 | AG33: 4.8
C34: 0 | E34: 0 | J34: 0 | L34: 0 | Q34: 0 | S34: 0 | X34: 0 | Z34: 0 | AC34: 1160 | AD34: 0.02 | AE34: 135 | AG34: 2.7
C35: 0 | E35: 0 | J35: 0 | L35: 0 | Q35: 0 | S35: 0 | X35: 0 | Z35: 0 | AC35: 1320 | AD35: 0.01 | AE35: 160 | AF35: 0.01 | AG35: 1.59
C36: 0 | E36: 0 | J36: 0 | L36: 0 | Q36: 0 | S36: 0 | X36: 0 | Z36: 0 | AC36: 2921 | AD36: 0 | AE36: 1601 | AF36: 0 | AG36: 0
C37: 0 | E37: 0 | J37: 0 | L37: 0 | Q37: 0 | S37: 0 | X37: 0 | Z37: 0 | AE37: 0 | AG37: 0
C38: 0 | E38: 0 | J38: 0 | L38: 0 | Q38: 0 | S38: 0 | X38: 0 | Z38: 0 | AE38: 0 | AG38: 0
C39: 0 | E39: 0 | J39: 0 | L39: 0 | Q39: 0 | S39: 0 | X39: 0 | Z39: 0 | AE39: 0 | AG39: 0
C40: 0 | E40: 0 | J40: 0 | L40: 0 | Q40: 0 | S40: 0 | X40: 0 | Z40: 0 | AE40: 0 | AG40: =IF($AC$4>=AC40,AE40*AD40,($AC$4-AC39)*AD40) -> 0
C41: 0 | E41: 0 | J41: 0 | L41: 0 | Q41: 0 | S41: 0 | X41: 0 | Z41: 0 | AE41: 0 | AG41: 0
C42: 0 | E42: 0 | J42: 0 | L42: 0 | Q42: 0 | S42: 0 | X42: 0 | Z42: 0 | AE42: 0 | AG42: 0
C43: 0 | E43: 0 | J43: 0 | L43: 0 | Q43: 0 | S43: 0 | X43: 0 | Z43: 0 | AE43: 0 | AG43: 0
C44: 0 | E44: 0 | J44: 0 | L44: 0 | Q44: 0 | S44: 0 | X44: 0 | Z44: 0 | AE44: 0 | AG44: 0
C45: 0 | E45: 0 | J45: 0 | L45: 0 | Q45: 0 | S45: 0 | X45: 0 | Z45: 0 | AE45: 0 | AG45: 0
C46: 0 | E46: 0 | J46: 0 | L46: 0 | Q46: 0 | S46: 0 | X46: 0 | Z46: 0 | AE46: 0 | AG46: 0
C47: 0 | E47: 0 | J47: 0 | L47: 0 | Q47: 0 | S47: 0 | X47: 0 | Z47: 0 | AE47: 0 | AG47: 0
C48: 0 | E48: 0 | J48: 0 | L48: 0 | Q48: 0 | S48: 0 | X48: 0 | Z48: 0 | AE48: 0 | AG48: 0
C49: 0 | E49: 0 | J49: 0 | L49: 0 | Q49: 0 | S49: 0 | X49: 0 | Z49: 0 | AE49: 0 | AG49: 0
C50: 0 | E50: 0 | J50: 0 | L50: 0 | Q50: 0 | S50: 0 | X50: 0 | Z50: 0 | AE50: 0 | AG50: 0
C51: 0 | E51: 0 | J51: 0 | L51: 0 | Q51: 0 | S51: 0 | X51: 0 | Z51: 0 | AE51: 0 | AG51: 0
C52: 0 | E52: 0 | J52: 0 | L52: 0 | Q52: 0 | S52: 0 | X52: 0 | Z52: 0 | AE52: 0 | AG52: 0
C53: 0 | E53: 0 | J53: 0 | L53: 0 | Q53: 0 | S53: 0 | X53: 0 | Z53: 0 | AE53: 0 | AG53: 0
C54: 0 | E54: 0 | J54: 0 | L54: 0 | Q54: 0 | S54: 0 | X54: 0 | Z54: 0 | AE54: 0 | AG54: 0
C55: 0 | E55: 0 | J55: 0 | L55: 0 | Q55: 0 | S55: 0 | X55: 0 | Z55: 0 | AE55: 0 | AG55: 0
C56: 0 | E56: 0 | J56: 0 | L56: 0 | Q56: 0 | S56: 0 | X56: 0 | Z56: 0 | AE56: 0 | AG56: 0
C57: 0 | E57: 0 | J57: 0 | L57: 0 | Q57: 0 | S57: 0 | X57: 0 | Z57: 0 | AE57: 0 | AG57: 0
C58: 0 | E58: 0 | J58: 0 | L58: 0 | Q58: 0 | S58: 0 | X58: 0 | Z58: 0 | AE58: 0 | AG58: 0
C59: 0 | E59: 0 | J59: 0 | L59: 0 | Q59: 0 | S59: 0 | X59: 0 | Z59: 0 | AE59: 0 | AG59: 0
C60: 0 | E60: 0 | J60: 0 | L60: 0 | Q60: 0 | S60: 0 | X60: 0 | Z60: 0 | AE60: 0 | AG60: 0
C61: 0 | E61: 0 | J61: 0 | L61: 0 | Q61: 0 | S61: 0 | X61: 0 | Z61: 0 | AE61: 0 | AG61: 0
C62: 0 | E62: 0 | J62: 0 | L62: 0 | Q62: 0 | S62: 0 | X62: 0 | Z62: 0 | AE62: 0 | AG62: 0
C63: 0 | E63: 0 | J63: 0 | L63: 0 | Q63: 0 | S63: 0 | X63: 0 | Z63: 0 | AE63: 0 | AG63: 0
C64: 0 | E64: 0 | J64: 0 | L64: 0 | Q64: 0 | S64: 0 | X64: 0 | Z64: 0 | AE64: 0 | AG64: 0
C65: 0 | E65: 0 | J65: 0 | L65: 0 | Q65: 0 | S65: 0 | X65: 0 | Z65: 0 | AE65: 0 | AG65: 0
C66: 0 | E66: 0 | J66: 0 | L66: 0 | Q66: 0 | S66: 0 | X66: 0 | Z66: 0 | AE66: 0 | AG66: 0
C67: 0 | E67: 0 | J67: 0 | L67: 0 | Q67: 0 | S67: 0 | X67: 0 | Z67: 0 | AE67: 0 | AG67: 0
C68: 0 | E68: 0 | J68: 0 | L68: 0 | Q68: 0 | S68: 0 | X68: 0 | Z68: 0 | AE68: 0 | AG68: 0
C69: 0 | E69: 0 | J69: 0 | L69: 0 | Q69: 0 | S69: 0 | X69: 0 | Z69: 0 | AE69: 0 | AG69: 0
C70: 0 | E70: 0 | J70: 0 | L70: 0 | Q70: 0 | S70: 0 | X70: 0 | Z70: 0 | AE70: 0 | AG70: 0
C71: 0 | E71: 0 | J71: 0 | L71: 0 | Q71: 0 | S71: 0 | X71: 0 | Z71: 0 | AE71: 0 | AG71: 0
C72: 0 | E72: 0 | J72: 0 | L72: 0 | Q72: 0 | S72: 0 | X72: 0 | Z72: 0 | AE72: 0 | AG72: 0
C73: 0 | E73: 0 | J73: 0 | L73: 0 | Q73: 0 | S73: 0 | X73: 0 | Z73: 0 | AE73: 0 | AG73: 0
C74: 0 | E74: 0 | J74: 0 | L74: 0 | Q74: 0 | S74: 0 | X74: 0 | Z74: 0 | AE74: 0 | AG74: 0
C75: 0 | E75: 0 | J75: 0 | L75: 0 | Q75: 0 | S75: 0 | X75: 0 | Z75: 0 | AE75: 0 | AG75: 0
C76: 0 | E76: 0 | J76: 0 | L76: 0 | Q76: 0 | S76: 0 | X76: 0 | Z76: 0 | AE76: 0 | AG76: =IF($AC$4>=AC76,AE76*AD76,($AC$4-AC75)*AD76) -> 0
C77: =IF(A76>A77,A77,A77-A76) -> 0 | D77: =IF($A$4<=A77,B77,"") ->  | E77: 0 | J77: =IF(H76>H77,H77,H77-H76) -> 0 | K77: =IF($H$4<=H77,I77,"") ->  | L77: =IF($H$4>=H77,J77*I77,($H$4-H76)*I77) -> 0 | Q77: =IF(O76>O77,O77,O77-O76) -> 0 | R77: =IF($O$4<=O77,P77,"") ->  | S77: =IF($O$4>=O77,Q77*P77,($O$4-O76)*P77) -> 0 | X77: =IF(V76>V77,V77,V77-V76) -> 0 | Y77: =IF($V$4<=V77,W77,"") ->  | Z77: =IF($V$4>=V77,X77*W77,($V$4-V76)*W77) -> 0 | AE77: =IF(AC76>AC77,AC77,AC77-AC76) -> 0 | AF77: =IF($AC$4<=AC77,AD77,"") ->  | AG77: 0
C78: 0 | E78: =IF($A$4>=A78,C78*B78,($A$4-A77)*B78) -> 0 | J78: 0 | L78: 0 | Q78: 0 | S78: 0 | X78: 0 | Z78: 0 | AE78: 0 | AG78: 0
C79: 0 | E79: 0 | J79: 0 | L79: 0 | Q79: 0 | S79: 0 | X79: 0 | Z79: 0 | AE79: 0 | AG79: 0
C80: 0 | E80: 0 | J80: 0 | L80: 0 | Q80: 0 | S80: 0 | X80: 0 | Z80: 0 | AE80: 0 | AG80: 0
C81: 0 | E81: 0 | J81: 0 | L81: 0 | Q81: 0 | S81: 0 | X81: 0 | Z81: 0 | AE81: 0 | AG81: 0
C82: 0 | E82: 0 | J82: 0 | L82: 0 | Q82: 0 | S82: 0 | X82: 0 | Z82: 0 | AE82: 0 | AG82: 0
C83: 0 | E83: 0 | J83: 0 | L83: 0 | Q83: 0 | S83: 0 | X83: 0 | Z83: 0 | AE83: 0 | AG83: 0
C84: 0 | E84: 0 | J84: 0 | L84: 0 | Q84: 0 | S84: 0 | X84: 0 | Z84: 0 | AE84: 0 | AG84: 0
C85: 0 | E85: 0 | J85: 0 | L85: 0 | Q85: 0 | S85: 0 | X85: 0 | Z85: 0 | AE85: 0 | AG85: 0
C86: 0 | E86: 0 | J86: 0 | L86: 0 | Q86: 0 | S86: 0 | X86: 0 | Z86: 0 | AE86: 0 | AG86: 0
C87: 0 | E87: 0 | J87: 0 | L87: 0 | Q87: 0 | S87: 0 | X87: 0 | Z87: 0 | AE87: 0 | AG87: 0
C88: 0 | E88: 0 | J88: 0 | L88: 0 | Q88: 0 | S88: 0 | X88: 0 | Z88: 0 | AE88: 0 | AG88: 0
C89: 0 | E89: 0 | J89: 0 | L89: 0 | Q89: 0 | S89: 0 | X89: 0 | Z89: 0 | AE89: 0 | AG89: 0
C90: 0 | E90: 0 | J90: 0 | L90: 0 | Q90: 0 | S90: 0 | X90: 0 | Z90: 0 | AE90: 0 | AG90: 0
C91: 0 | E91: 0 | J91: 0 | L91: 0 | Q91: 0 | S91: 0 | X91: 0 | Z91: 0 | AE91: 0 | AG91: 0
C92: 0 | E92: 0 | J92: 0 | L92: 0 | Q92: 0 | S92: 0 | X92: 0 | Z92: 0 | AE92: 0 | AG92: 0
C93: 0 | E93: 0 | J93: 0 | L93: 0 | Q93: 0 | S93: 0 | X93: 0 | Z93: 0 | AE93: 0 | AG93: 0
C94: 0 | E94: 0 | J94: 0 | L94: 0 | Q94: 0 | S94: 0 | X94: 0 | Z94: 0 | AE94: 0 | AG94: 0
C95: 0 | E95: 0 | J95: 0 | L95: 0 | Q95: 0 | S95: 0 | X95: 0 | Z95: 0 | AE95: 0 | AG95: 0
C96: 0 | E96: 0 | J96: 0 | L96: 0 | Q96: 0 | S96: 0 | X96: 0 | Z96: 0 | AE96: 0 | AG96: 0
C97: 0 | E97: 0 | J97: 0 | L97: 0 | Q97: 0 | S97: 0 | X97: 0 | Z97: 0 | AE97: 0 | AG97: 0
C98: 0 | E98: 0 | J98: 0 | L98: 0 | Q98: 0 | S98: 0 | X98: 0 | Z98: 0 | AE98: 0 | AG98: 0
C99: 0 | E99: 0 | J99: 0 | L99: 0 | Q99: 0 | S99: 0 | X99: 0 | Z99: 0 | AE99: 0 | AG99: 0
C100: 0 | E100: 0 | J100: 0 | L100: 0 | Q100: 0 | S100: 0 | X100: 0 | Z100: 0 | AE100: 0 | AG100: 0
C101: 0 | E101: 0 | J101: 0 | L101: 0 | Q101: 0 | S101: 0 | X101: 0 | Z101: 0 | AE101: 0 | AG101: 0

Sheet CZ-Tennet

Sheet PL-DE

Sheet PL-CZ

Sheet PL-SK

Sheet CZ-DE

Sheet Aukce do PL
A1: DE(50Hz)-PL | H1: CZ-PL | O1: SK-PL | V1: DE(50Hz)-CZ | AC1: DE(Tennet)-CZ
A3: Allocateded Capacity | D3: True Price | H3: Allocateded Capacity | K3: True Price | O3: Allocateded Capacity | R3: True Price | V3: Allocateded Capacity | Y3: True Price | AC3: Allocateded Capacity | AF3: SP
A4: 0 | D4: =IF((AG8+AG5)>1000,0,AG8+AG5) -> 0 | H4: 0 | K4: =IF((AG5+AG4)>1000,0,AG5+AG4) -> 0 | O4: 0 | R4: =IF((AG5+AG6)>1000,0,AG5+AG6) -> 0 | V4: 1184 | Y4: =IF((AG7)>1000,0,AG7) -> 1.1 | AC4: 727 | AF4: CZ-PL | AG4: =IF(H4<AJ23,0,H8) -> 0 | AL4: DE
A5: Welfare | H5: Welfare | O5: Welfare | V5: Welfare | AA5: AC DE-CZ | AC5: Welfare | AF5: DE(50Hz)+CZ+SK-PL | AG5: =IF(AI9<AJ24,0,MIN(IF(A4>0,A8,99999),IF(H4>0,H8,999999),IF(O4>0,O8,9999999))) -> 99999 | AL5: =OR(A4=A10,A4=AM24) -> TRUE | AN5: CZ-DE
A6: =SUMIF(E12:E70,">0") -> 0 | H6: =SUMIF(L12:L70,">0") -> 0 | O6: =SUMIF(S12:S70,">0") -> 0 | V6: =SUMIF(Z12:Z70,">0") -> 4869.27 | AA6: =V4+AC4 -> 1911 | AC6: =SUMIF(AG12:AG70,">0") -> 8693.01 | AF6: SK-PL | AG6: =IF(O4<AJ25,0,O8) -> 0 | AI6: Total Welfare | AK6: Tech. Prof | AL6: SK | AN6: =OR(AA6=AJ26,AND(V4=V10,AC4=AC10)) -> TRUE
A7: Price | H7: Price | O7: Price | V7: Price | AC7: Price | AF7: DE-CZ | AG7: =IF(AA6<AJ26,0,MIN(IF(V4>0,V8,99999),IF(AC4>0,AC8,99999))) -> 1.1 | AI7: =A6+H6+O6+V6+AC6 -> 13562.28 | AK7: =AND(TRUE,AI9=AJ24) -> TRUE | AL7: =OR(O4=AJ25,O4=O10) -> TRUE
A8: =MAX(D12:D101) -> 0.6 | H8: =MAX(K12:K101) -> 0.6 | O8: =MAX(R12:R101) -> 0 | V8: =MAX(Y12:Y101) -> 1.1 | AC8: =MAX(AF12:AF101) -> 1.33 | AF8: DE-PL | AG8: =IF(A4<AM24,0,A8) -> 0 | AI8: DE(50Hz)+CZ+SK-PL | AL8: CZ
AI9: =A4+H4+O4 -> 0 | AL9: =OR(H4=AJ23,H4=H10) -> TRUE
A10: =MAX(A12:A101) -> 0 | H10: =MAX(H12:H101) -> 0 | O10: =MAX(O12:O101) -> 0 | V10: =MAX(V12:V101) -> 3478 | AC10: =MAX(AC12:AC101) -> 2948
A11: Bid Quantity Cumulative | B11: Bid Price | C11: Bid Quantity | D11: Price Help | E11: Welfare | H11: Bid Quantity Cumulative | I11: Bid Price | J11: Bid Quantity | K11: Price Help | L11: Welfare | O11: Bid Quantity Cumulative | P11: Bid Price | Q11: Bid Quantity | R11: Price Help | S11: Welfare | V11: Bid Quantity Cumulative | W11: Bid Price | X11: Bid Quantity | Y11: Price Help | Z11: Welfare | AC11: Bid Quantity Cumulative | AD11: Bid Price | AE11: Bid Quantity | AF11: Price Help | AG11: Welfare
A12: 0 | B12: 0.6 | C12: =IF(A11>A12,A12,A12-A11) -> 0 | D12: =IF($A$4<=A12,B12,"") -> 0.6 | E12: =IF($A$4>=A12,C12*B12,$A$4*B12) -> 0 | H12: 0 | I12: 0.6 | J12: =IF(H11>H12,H12,H12-H11) -> 0 | K12: =IF($H$4<=H12,I12,"") -> 0.6 | L12: =IF($H$4>=H12,J12*I12,$H$4*I12) -> 0 | O12: 0 | P12: 0 | Q12: =IF(O11>O12,O12,O12-O11) -> 0 | R12: =IF($O$4<=O12,P12,"") -> 0 | S12: =IF($O$4>=O12,Q12*P12,$O$4*P12) -> 0 | V12: 25 | W12: 15 | X12: =IF(V11>V12,V12,V12-V11) -> 25 | Y12: =IF($V$4<=V12,W12,"") ->  | Z12: =IF($V$4>=V12,X12*W12,$V$4*W12) -> 375 | AC12: 80 | AD12: 50 | AE12: =IF(AC11>AC12,AC12,AC12-AC11) -> 80 | AF12: =IF($AC$4<=AC12,AD12,"") ->  | AG12: =IF($AC$4>=AC12,AE12*AD12,($AC$4)*AD12) -> 4000
A13: 0 | B13: 0.42 | C13: =IF(A12>A13,A13,A13-A12) -> 0 | D13: =IF($A$4<=A13,B13,"") -> 0.42 | E13: =IF($A$4>=A13,C13*B13,($A$4-A12)*B13) -> 0 | H13: 0 | I13: 0.27 | J13: =IF(H12>H13,H13,H13-H12) -> 0 | K13: =IF($H$4<=H13,I13,"") -> 0.27 | L13: =IF($H$4>=H13,J13*I13,($H$4-H12)*I13) -> 0 | Q13: =IF(O12>O13,O13,O13-O12) -> 0 | R13: =IF($O$4<=O13,P13,"") -> 0 | S13: =IF($O$4>=O13,Q13*P13,($O$4-O12)*P13) -> 0 | V13: 50 | W13: 12.9 | X13: =IF(V12>V13,V13,V13-V12) -> 25 | Y13: =IF($V$4<=V13,W13,"") ->  | Z13: =IF($V$4>=V13,X13*W13,($V$4-V12)*W13) -> 322.5 | AC13: 125 | AD13: 20 | AE13: =IF(AC12>AC13,AC13,AC13-AC12) -> 45 | AF13: =IF($AC$4<=AC13,AD13,"") ->  | AG13: =IF($AC$4>=AC13,AE13*AD13,($AC$4-AC12)*AD13) -> 900
A14: 0 | B14: 0.29 | C14: 0 | D14: 0.29 | E14: =IF($A$4>=A14,C14*B14,($A$4-A13)*B14) -> 0 | H14: 0 | I14: 0.12 | J14: 0 | K14: 0.12 | L14: =IF($H$4>=H14,J14*I14,($H$4-H13)*I14) -> 0 | Q14: 0 | R14: 0 | S14: =IF($O$4>=O14,Q14*P14,($O$4-O13)*P14) -> 0 | V14: 100 | W14: 11.09 | X14: 50 | Z14: =IF($V$4>=V14,X14*W14,($V$4-V13)*W14) -> 554.5 | AC14: 150 | AD14: 15 | AE14: 25 | AG14: =IF($AC$4>=AC14,AE14*AD14,($AC$4-AC13)*AD14) -> 375
A15: 0 | B15: 0 | C15: 0 | D15: 0 | E15: 0 | H15: 0 | I15: 0.05 | J15: 0 | K15: 0.05 | L15: 0 | Q15: 0 | R15: 0 | S15: 0 | V15: 150 | W15: 9.06 | X15: 50 | Z15: 453 | AC15: 175 | AD15: 12.9 | AE15: 25 | AG15: 322.5
C16: 0 | D16: 0 | E16: 0 | H16: 0 | I16: 0 | J16: 0 | K16: 0 | L16: 0 | Q16: 0 | R16: 0 | S16: 0 | V16: 250 | W16: 8.51 | X16: 100 | Z16: 851 | AC16: 225 | AD16: 11.09 | AE16: 50 | AG16: 554.5
C17: 0 | D17: 0 | E17: 0 | J17: 0 | K17: 0 | L17: 0 | Q17: 0 | R17: 0 | S17: 0 | V17: 270 | W17: 7 | X17: 20 | Z17: 140 | AC17: 256 | AD17: 11 | AE17: 31 | AG17: 341
C18: 0 | D18: 0 | E18: 0 | J18: 0 | K18: 0 | L18: 0 | Q18: 0 | R18: 0 | S18: 0 | V18: 320 | W18: 5.45 | X18: 50 | Z18: 272.5 | AC18: 356 | AD18: 8.51 | AE18: 100 | AG18: 851
C19: 0 | D19: 0 | E19: 0 | J19: 0 | K19: 0 | L19: 0 | Q19: 0 | R19: 0 | S19: 0 | V19: 420 | W19: 5.01 | X19: 100 | Z19: 501 | AC19: 376 | AD19: 7 | AE19: 20 | AG19: 140
C20: 0 | D20: 0 | E20: 0 | J20: 0 | K20: 0 | L20: 0 | Q20: 0 | R20: 0 | S20: 0 | V20: 425 | W20: 4.5 | X20: 5 | Z20: 22.5 | AC20: 401 | AD20: 6.68 | AE20: 25 | AG20: 167
C21: 0 | D21: 0 | E21: 0 | J21: 0 | K21: 0 | L21: 0 | Q21: 0 | R21: 0 | S21: 0 | V21: 447 | W21: 3.55 | X21: 22 | Z21: 78.1 | AC21: 406 | AD21: 5 | AE21: 5 | AG21: 25
C22: 0 | D22: 0 | E22: 0 | J22: 0 | K22: 0 | L22: 0 | Q22: 0 | R22: 0 | S22: 0 | V22: 497 | W22: 3.52 | X22: 50 | Z22: 176 | AC22: 506 | AD22: 4.51 | AE22: 100 | AG22: 451 | AI22: Offered Capacity | AL22: DE(TenneT)-CZ | AM22: 1273
C23: 0 | D23: 0 | E23: 0 | J23: 0 | K23: 0 | L23: 0 | Q23: 0 | R23: 0 | S23: 0 | V23: 597 | W23: 3.22 | X23: 100 | Z23: 322 | AC23: 531 | AD23: 4.02 | AE23: 25 | AG23: 100.5 | AI23: CZ-PL | AJ23: 600 | AL23: DE(50Hz)-PL+CZ | AM23: 1276
C24: 0 | D24: 0 | E24: 0 | J24: 0 | K24: 0 | L24: 0 | Q24: 0 | R24: 0 | S24: 0 | V24: 602 | W24: 2.5 | X24: 5 | Z24: 12.5 | AC24: 553 | AD24: 3.55 | AE24: 22 | AG24: 78.1 | AI24: DE(50Hz)+CZ+SK-PL | AJ24: 0 | AL24: DE-PL | AM24: =0.5*AM23 -> 638
C25: 0 | D25: 0 | E25: 0 | J25: 0 | K25: 0 | L25: 0 | Q25: 0 | R25: 0 | S25: 0 | V25: 652 | W25: 1.82 | X25: 50 | Z25: 91 | AC25: 595 | AD25: 3.22 | AE25: 42 | AG25: 135.24 | AI25: SK-PL | AJ25: 500
C26: 0 | D26: 0 | E26: 0 | J26: 0 | K26: 0 | L26: 0 | Q26: 0 | R26: 0 | S26: 0 | V26: 687 | W26: 1.8 | X26: 35 | Z26: 63 | AC26: 600 | AD26: 3 | AE26: 5 | AG26: 15 | AI26: DE-CZ | AJ26: =AM22+0.5*AM23 -> 1911
C27: 0 | D27: 0 | E27: 0 | J27: 0 | K27: 0 | L27: 0 | Q27: 0 | R27: 0 | S27: 0 | V27: 709 | W27: 1.66 | X27: 22 | Z27: 36.52 | AC27: 625 | AD27: 2.08 | AE27: 25 | AG27: 52
C28: 0 | D28: 0 | E28: 0 | J28: 0 | K28: 0 | L28: 0 | Q28: 0 | R28: 0 | S28: 0 | V28: 759 | W28: 1.55 | X28: 50 | Z28: 77.5 | AC28: 655 | AD28: 2 | AE28: 30 | AG28: 60
C29: 0 | D29: 0 | E29: 0 | J29: 0 | K29: 0 | L29: 0 | Q29: 0 | R29: 0 | S29: 0 | V29: 769 | W29: 1.5 | X29: 10 | Z29: 15 | AC29: 665 | AD29: 1.9 | AE29: 10 | AG29: 19
C30: 0 | D30: 0 | E30: 0 | J30: 0 | K30: 0 | L30: 0 | Q30: 0 | R30: 0 | S30: 0 | V30: 774 | W30: 1.33 | X30: 5 | Z30: 6.65 | AC30: 700 | AD30: 1.8 | AE30: 35 | AG30: 63
C31: 0 | D31: 0 | E31: 0 | J31: 0 | K31: 0 | L31: 0 | Q31: 0 | R31: 0 | S31: 0 | V31: 1174 | W31: 1.22 | X31: 400 | Z31: 488 | AC31: 722 | AD31: 1.66 | AE31: 22 | AG31: 36.52
C32: 0 | D32: 0 | E32: 0 | J32: 0 | K32: 0 | L32: 0 | Q32: 0 | R32: 0 | S32: 0 | V32: 1224 | W32: 1.1 | X32: 50 | Y32: 1.1 | Z32: 11 | AC32: 727 | AD32: 1.33 | AE32: 5 | AF32: 1.33 | AG32: 6.65
C33: 0 | D33: 0 | E33: 0 | J33: 0 | K33: 0 | L33: 0 | Q33: 0 | R33: 0 | S33: 0 | V33: 1274 | W33: 1.09 | X33: 50 | Y33: 1.09 | Z33: -43.6 | AC33: 777 | AD33: 1.07 | AE33: 50 | AF33: 1.07 | AG33: 0
C34: 0 | D34: 0 | E34: 0 | J34: 0 | K34: 0 | L34: 0 | Q34: 0 | R34: 0 | S34: 0 | V34: 1279 | W34: 1.04 | X34: 5 | Y34: 1.04 | Z34: -93.6 | AC34: 782 | AD34: 1.04 | AE34: 5 | AF34: 1.04 | AG34: -52
C35: 0 | D35: 0 | E35: 0 | J35: 0 | K35: 0 | L35: 0 | Q35: 0 | R35: 0 | S35: 0 | V35: 1301 | W35: 0.88 | X35: 22 | Y35: 0.88 | Z35: -83.6 | AC35: 832 | AD35: 1.01 | AE35: 50 | AF35: 1.01 | AG35: -55.55
C36: 0 | D36: 0 | E36: 0 | J36: 0 | K36: 0 | L36: 0 | Q36: 0 | R36: 0 | S36: 0 | V36: 1311 | W36: 0.77 | X36: 10 | Y36: 0.77 | Z36: -90.09 | AC36: 854 | AD36: 0.88 | AE36: 22 | AF36: 0.88 | AG36: -92.4
C37: 0 | D37: 0 | E37: 0 | J37: 0 | K37: 0 | L37: 0 | Q37: 0 | R37: 0 | S37: 0 | V37: 1321 | W37: 0.74 | X37: 10 | Y37: 0.74 | Z37: -93.98 | AC37: 864 | AD37: 0.8 | AE37: 10 | AF37: 0.8 | AG37: -101.6
C38: 0 | D38: 0 | E38: 0 | J38: 0 | K38: 0 | L38: 0 | Q38: 0 | R38: 0 | S38: 0 | V38: 1331 | W38: 0.71 | X38: 10 | Y38: 0.71 | Z38: -97.27 | AC38: 874 | AD38: 0.74 | AE38: 10 | AF38: 0.74 | AG38: -101.38
C39: 0 | D39: 0 | E39: 0 | J39: 0 | K39: 0 | L39: 0 | Q39: 0 | R39: 0 | S39: 0 | V39: 1356 | W39: 0.69 | X39: 25 | Y39: 0.69 | Z39: -101.43 | AC39: 884 | AD39: 0.71 | AE39: 10 | AF39: 0.71 | AG39: -104.37
C40: 0 | D40: 0 | E40: 0 | J40: 0 | K40: 0 | L40: 0 | Q40: 0 | R40: 0 | S40: 0 | V40: 1406 | W40: 0.66 | X40: 50 | Y40: 0.66 | Z40: -113.52 | AC40: 934 | AD40: 0.64 | AE40: 50 | AF40: 0.64 | AG40: -100.48
C41: 0 | D41: 0 | E41: 0 | J41: 0 | K41: 0 | L41: 0 | Q41: 0 | R41: 0 | S41: 0 | V41: 1416 | W41: 0.61 | X41: 10 | Y41: 0.61 | Z41: -135.42 | AC41: 944 | AD41: 0.61 | AE41: 10 | AF41: 0.61 | AG41: -126.27
C42: 0 | D42: 0 | E42: 0 | J42: 0 | K42: 0 | L42: 0 | Q42: 0 | R42: 0 | S42: 0 | V42: 1436 | W42: 0.55 | X42: 20 | Y42: 0.55 | Z42: -127.6 | AC42: 959 | AD42: 0.51 | AE42: 15 | AF42: 0.51 | AG42: -110.67
C43: 0 | D43: 0 | E43: 0 | J43: 0 | K43: 0 | L43: 0 | Q43: 0 | R43: 0 | S43: 0 | V43: 1551 | W43: 0.51 | X43: 115 | Y43: 0.51 | Z43: -128.52 | AC43: 979 | AD43: 0.5 | AE43: 20 | AF43: 0.5 | AG43: -116
C44: 0 | D44: 0 | E44: 0 | J44: 0 | K44: 0 | L44: 0 | Q44: 0 | R44: 0 | S44: 0 | V44: 1583 | W44: 0.44 | X44: 32 | Y44: 0.44 | Z44: -161.48 | AC44: 1011 | AD44: 0.44 | AE44: 32 | AF44: 0.44 | AG44: -110.88
C45: 0 | D45: 0 | E45: 0 | J45: 0 | K45: 0 | L45: 0 | Q45: 0 | R45: 0 | S45: 0 | V45: 1608 | W45: 0.41 | X45: 25 | Y45: 0.41 | Z45: -163.59 | AC45: 1036 | AD45: 0.41 | AE45: 25 | AF45: 0.41 | AG45: -116.44
C46: 0 | D46: 0 | E46: 0 | J46: 0 | K46: 0 | L46: 0 | Q46: 0 | R46: 0 | S46: 0 | V46: 1628 | W46: 0.33 | X46: 20 | Y46: 0.33 | Z46: -139.92 | AC46: 1086 | AD46: 0.39 | AE46: 50 | AF46: 0.39 | AG46: -120.51
C47: 0 | D47: 0 | E47: 0 | J47: 0 | K47: 0 | L47: 0 | Q47: 0 | R47: 0 | S47: 0 | V47: 1653 | W47: 0.31 | X47: 25 | Y47: 0.31 | Z47: -137.64 | AC47: 1111 | AD47: 0.31 | AE47: 25 | AF47: 0.31 | AG47: -111.29
C48: 0 | D48: 0 | E48: 0 | J48: 0 | K48: 0 | L48: 0 | Q48: 0 | R48: 0 | S48: 0 | V48: 1663 | W48: 0.27 | X48: 10 | Y48: 0.27 | Z48: -126.63 | AC48: 1121 | AD48: 0.27 | AE48: 10 | AF48: 0.27 | AG48: -103.68
C49: 0 | D49: 0 | E49: 0 | J49: 0 | K49: 0 | L49: 0 | Q49: 0 | R49: 0 | S49: 0 | V49: 1683 | W49: 0.22 | X49: 20 | Y49: 0.22 | Z49: -105.38 | AC49: 1146 | AD49: 0.21 | AE49: 25 | AF49: 0.21 | AG49: -82.74
C50: 0 | D50: 0 | E50: 0 | J50: 0 | K50: 0 | L50: 0 | Q50: 0 | R50: 0 | S50: 0 | V50: 1708 | W50: 0.21 | X50: 25 | Y50: 0.21 | Z50: -104.79 | AC50: 1166 | AD50: 0.2 | AE50: 20 | AF50: 0.2 | AG50: -83.8
C51: 0 | D51: 0 | E51: 0 | J51: 0 | K51: 0 | L51: 0 | Q51: 0 | R51: 0 | S51: 0 | V51: 1718 | W51: 0.19 | X51: 10 | Y51: 0.19 | Z51: -99.56 | AC51: 1176 | AD51: 0.19 | AE51: 10 | AF51: 0.19 | AG51: -83.41
C52: 0 | D52: 0 | E52: 0 | J52: 0 | K52: 0 | L52: 0 | Q52: 0 | R52: 0 | S52: 0 | V52: 1768 | W52: 0.18 | X52: 50 | Y52: 0.18 | Z52: -96.12 | AC52: 1226 | AD52: 0.18 | AE52: 50 | AF52: 0.18 | AG52: -80.82
C53: 0 | D53: 0 | E53: 0 | J53: 0 | K53: 0 | L53: 0 | Q53: 0 | R53: 0 | S53: 0 | V53: 1818 | W53: 0.16 | X53: 50 | Y53: 0.16 | Z53: -93.44 | AC53: 1276 | AD53: 0.16 | AE53: 50 | AF53: 0.16 | AG53: -79.84
C54: 0 | D54: 0 | E54: 0 | J54: 0 | K54: 0 | L54: 0 | Q54: 0 | R54: 0 | S54: 0 | V54: 1828 | W54: 0.15 | X54: 10 | Y54: 0.15 | Z54: -95.1 | AC54: 1286 | AD54: 0.15 | AE54: 10 | AF54: 0.15 | AG54: -82.35
C55: 0 | D55: 0 | E55: 0 | J55: 0 | K55: 0 | L55: 0 | Q55: 0 | R55: 0 | S55: 0 | V55: 1838 | W55: 0.13 | X55: 10 | Y55: 0.13 | Z55: -83.72 | AC55: 1296 | AD55: 0.13 | AE55: 10 | AF55: 0.13 | AG55: -72.67
C56: 0 | D56: 0 | E56: 0 | J56: 0 | K56: 0 | L56: 0 | Q56: 0 | R56: 0 | S56: 0 | V56: 1848 | W56: 0.09 | X56: 10 | Y56: 0.09 | Z56: -58.86 | AC56: 1306 | AD56: 0.09 | AE56: 10 | AF56: 0.09 | AG56: -51.21
C57: 0 | D57: 0 | E57: 0 | J57: 0 | K57: 0 | L57: 0 | Q57: 0 | R57: 0 | S57: 0 | V57: 1898 | W57: 0.08 | X57: 50 | Y57: 0.08 | Z57: -53.12 | AC57: 1356 | AD57: 0.08 | AE57: 50 | AF57: 0.08 | AG57: -46.32
C58: 0 | D58: 0 | E58: 0 | J58: 0 | K58: 0 | L58: 0 | Q58: 0 | R58: 0 | S58: 0 | V58: 1918 | W58: 0.05 | X58: 20 | Y58: 0.05 | Z58: -35.7 | AC58: 1421 | AD58: 0.05 | AE58: 65 | AF58: 0.05 | AG58: -31.45
C59: 0 | D59: 0 | E59: 0 | J59: 0 | K59: 0 | L59: 0 | Q59: 0 | R59: 0 | S59: 0 | V59: 1968 | W59: 0.04 | X59: 50 | Y59: 0.04 | Z59: -29.36 | AC59: 1471 | AD59: 0.04 | AE59: 50 | AF59: 0.04 | AG59: -27.76
C60: 0 | D60: 0 | E60: 0 | J60: 0 | K60: 0 | L60: 0 | Q60: 0 | R60: 0 | S60: 0 | V60: 2018 | W60: 0.03 | X60: 50 | Y60: 0.03 | Z60: -23.52 | AC60: 1521 | AD60: 0.03 | AE60: 50 | AF60: 0.03 | AG60: -22.32
C61: 0 | D61: 0 | E61: 0 | J61: 0 | K61: 0 | L61: 0 | Q61: 0 | R61: 0 | S61: 0 | V61: 2088 | W61: 0.02 | X61: 70 | Y61: 0.02 | Z61: -16.68 | AC61: 1591 | AD61: 0.02 | AE61: 70 | AF61: 0.02 | AG61: -15.88
C62: 0 | D62: 0 | E62: 0 | J62: 0 | K62: 0 | L62: 0 | Q62: 0 | R62: 0 | S62: 0 | V62: 2238 | W62: 0.01 | X62: 150 | Y62: 0.01 | Z62: -9.04 | AC62: 1711 | AD62: 0.01 | AE62: 120 | AF62: 0.01 | AG62: -8.64
C63: 0 | D63: 0 | E63: 0 | J63: 0 | K63: 0 | L63: 0 | Q63: 0 | R63: 0 | S63: 0 | V63: 3478 | W63: 0 | X63: 1240 | Y63: 0 | Z63: 0 | AC63: 2948 | AD63: 0 | AE63: 1237 | AF63: 0 | AG63: 0
C64: 0 | D64: 0 | E64: 0 | J64: 0 | K64: 0 | L64: 0 | Q64: 0 | R64: 0 | S64: 0 | X64: 0 | Z64: 0 | AE64: 0 | AG64: 0
C65: 0 | D65: 0 | E65: 0 | J65: 0 | K65: 0 | L65: 0 | Q65: 0 | R65: 0 | S65: 0 | X65: 0 | Z65: 0 | AE65: 0 | AG65: 0
C66: 0 | D66: 0 | E66: 0 | J66: 0 | K66: 0 | L66: 0 | Q66: 0 | R66: 0 | S66: 0 | X66: 0 | Z66: 0 | AE66: 0 | AG66: 0
C67: 0 | D67: 0 | E67: 0 | J67: 0 | K67: 0 | L67: 0 | Q67: 0 | R67: 0 | S67: 0 | X67: 0 | Z67: 0 | AE67: 0 | AG67: 0
C68: 0 | D68: 0 | E68: 0 | J68: 0 | K68: 0 | L68: 0 | Q68: 0 | R68: 0 | S68: 0 | X68: 0 | Z68: 0 | AE68: 0 | AG68: 0
C69: 0 | D69: 0 | E69: 0 | J69: 0 | K69: 0 | L69: 0 | Q69: 0 | R69: 0 | S69: 0 | X69: 0 | Z69: 0 | AE69: 0 | AG69: 0
C70: 0 | D70: 0 | E70: 0 | J70: 0 | K70: 0 | L70: 0 | Q70: 0 | R70: 0 | S70: 0 | X70: 0 | Z70: 0 | AE70: 0 | AG70: 0
C71: 0 | D71: 0 | E71: 0 | J71: 0 | K71: 0 | L71: 0 | Q71: 0 | R71: 0 | S71: 0 | X71: 0 | Z71: 0 | AE71: 0 | AG71: 0
C72: 0 | D72: 0 | E72: 0 | J72: 0 | K72: 0 | L72: 0 | Q72: 0 | R72: 0 | S72: 0 | X72: 0 | Z72: 0 | AE72: 0 | AG72: 0
C73: 0 | D73: 0 | E73: 0 | J73: 0 | K73: 0 | L73: 0 | Q73: 0 | R73: 0 | S73: 0 | X73: 0 | Z73: 0 | AE73: 0 | AG73: 0
C74: 0 | D74: 0 | E74: 0 | J74: 0 | K74: 0 | L74: 0 | Q74: 0 | R74: 0 | S74: 0 | X74: 0 | Z74: 0 | AE74: 0 | AG74: 0
C75: 0 | D75: 0 | E75: 0 | J75: 0 | K75: 0 | L75: 0 | Q75: 0 | R75: 0 | S75: 0 | X75: 0 | Z75: 0 | AE75: 0 | AG75: 0
C76: 0 | D76: 0 | E76: 0 | J76: 0 | K76: 0 | L76: 0 | Q76: 0 | R76: 0 | S76: 0 | X76: 0 | Z76: 0 | AE76: 0 | AG76: 0
C77: =IF(A76>A77,A77,A77-A76) -> 0 | D77: =IF($A$4<=A77,B77,"") -> 0 | E77: 0 | J77: =IF(H76>H77,H77,H77-H76) -> 0 | K77: =IF($H$4<=H77,I77,"") -> 0 | L77: 0 | Q77: =IF(O76>O77,O77,O77-O76) -> 0 | R77: =IF($O$4<=O77,P77,"") -> 0 | S77: 0 | X77: =IF(V76>V77,V77,V77-V76) -> 0 | Y77: =IF($V$4<=V77,W77,"") ->  | Z77: 0 | AE77: =IF(AC76>AC77,AC77,AC77-AC76) -> 0 | AF77: =IF($AC$4<=AC77,AD77,"") ->  | AG77: 0
C78: 0 | D78: 0 | E78: =IF($A$4>=A78,C78*B78,($A$4-A77)*B78) -> 0 | J78: 0 | K78: 0 | L78: =IF($H$4>=H78,J78*I78,($H$4-H77)*I78) -> 0 | Q78: 0 | R78: 0 | S78: =IF($O$4>=O78,Q78*P78,($O$4-O77)*P78) -> 0 | X78: 0 | Z78: =IF($V$4>=V78,X78*W78,($V$4-V77)*W78) -> 0 | AE78: 0 | AG78: =IF($AC$4>=AC78,AE78*AD78,($AC$4-AC77)*AD78) -> 0
C79: 0 | D79: 0 | E79: 0 | J79: 0 | K79: 0 | L79: 0 | Q79: 0 | R79: 0 | S79: 0 | X79: 0 | Z79: 0 | AE79: 0 | AG79: 0
C80: 0 | D80: 0 | E80: 0 | J80: 0 | K80: 0 | L80: 0 | Q80: 0 | R80: 0 | S80: 0 | X80: 0 | Z80: 0 | AE80: 0 | AG80: 0
C81: 0 | D81: 0 | E81: 0 | J81: 0 | K81: 0 | L81: 0 | Q81: 0 | R81: 0 | S81: 0 | X81: 0 | Z81: 0 | AE81: 0 | AG81: 0
C82: 0 | D82: 0 | E82: 0 | J82: 0 | K82: 0 | L82: 0 | Q82: 0 | R82: 0 | S82: 0 | X82: 0 | Z82: 0 | AE82: 0 | AG82: 0
C83: 0 | D83: 0 | E83: 0 | J83: 0 | K83: 0 | L83: 0 | Q83: 0 | R83: 0 | S83: 0 | X83: 0 | Z83: 0 | AE83: 0 | AG83: 0
C84: 0 | D84: 0 | E84: 0 | J84: 0 | K84: 0 | L84: 0 | Q84: 0 | R84: 0 | S84: 0 | X84: 0 | Z84: 0 | AE84: 0 | AG84: 0
C85: 0 | D85: 0 | E85: 0 | J85: 0 | K85: 0 | L85: 0 | Q85: 0 | R85: 0 | S85: 0 | X85: 0 | Z85: 0 | AE85: 0 | AG85: 0
C86: 0 | D86: 0 | E86: 0 | J86: 0 | K86: 0 | L86: 0 | Q86: 0 | R86: 0 | S86: 0 | X86: 0 | Z86: 0 | AE86: 0 | AG86: 0
C87: 0 | D87: 0 | E87: 0 | J87: 0 | K87: 0 | L87: 0 | Q87: 0 | R87: 0 | S87: 0 | X87: 0 | Z87: 0 | AE87: 0 | AG87: 0
C88: 0 | D88: 0 | E88: 0 | J88: 0 | K88: 0 | L88: 0 | Q88: 0 | R88: 0 | S88: 0 | X88: 0 | Z88: 0 | AE88: 0 | AG88: 0
C89: 0 | D89: 0 | E89: 0 | J89: 0 | K89: 0 | L89: 0 | Q89: 0 | R89: 0 | S89: 0 | X89: 0 | Z89: 0 | AE89: 0 | AG89: 0
C90: 0 | D90: 0 | E90: 0 | J90: 0 | K90: 0 | L90: 0 | Q90: 0 | R90: 0 | S90: 0 | X90: 0 | Z90: 0 | AE90: 0 | AG90: 0
C91: 0 | D91: 0 | E91: 0 | J91: 0 | K91: 0 | L91: 0 | Q91: 0 | R91: 0 | S91: 0 | X91: 0 | Z91: 0 | AE91: 0 | AG91: 0
C92: 0 | D92: 0 | E92: 0 | J92: 0 | K92: 0 | L92: 0 | Q92: 0 | R92: 0 | S92: 0 | X92: 0 | Z92: 0 | AE92: 0 | AG92: 0
C93: 0 | D93: 0 | E93: 0 | J93: 0 | K93: 0 | L93: 0 | Q93: 0 | R93: 0 | S93: 0 | X93: 0 | Z93: 0 | AE93: 0 | AG93: 0
C94: 0 | D94: 0 | E94: 0 | J94: 0 | K94: 0 | L94: 0 | Q94: 0 | R94: 0 | S94: 0 | X94: 0 | Z94: 0 | AE94: 0 | AG94: 0
C95: 0 | D95: 0 | E95: 0 | J95: 0 | K95: 0 | L95: 0 | Q95: 0 | R95: 0 | S95: 0 | X95: 0 | Z95: 0 | AE95: 0 | AG95: 0
C96: 0 | D96: 0 | E96: 0 | J96: 0 | K96: 0 | L96: 0 | Q96: 0 | R96: 0 | S96: 0 | X96: 0 | Z96: 0 | AE96: 0 | AG96: 0
C97: 0 | D97: 0 | E97: 0 | J97: 0 | K97: 0 | L97: 0 | Q97: 0 | R97: 0 | S97: 0 | X97: 0 | Z97: 0 | AE97: 0 | AG97: 0
C98: 0 | D98: 0 | E98: 0 | J98: 0 | K98: 0 | L98: 0 | Q98: 0 | R98: 0 | S98: 0 | X98: 0 | Z98: 0 | AE98: 0 | AG98: 0
C99: 0 | D99: 0 | E99: 0 | J99: 0 | K99: 0 | L99: 0 | Q99: 0 | R99: 0 | S99: 0 | X99: 0 | Z99: 0 | AE99: 0 | AG99: 0
C100: 0 | D100: 0 | E100: 0 | J100: 0 | K100: 0 | L100: 0 | Q100: 0 | R100: 0 | S100: 0 | X100: 0 | Z100: 0 | AE100: 0 | AG100: 0
C101: 0 | D101: 0 | E101: 0 | J101: 0 | K101: 0 | L101: 0 | Q101: 0 | R101: 0 | S101: 0 | X101: 0 | Z101: 0 | AE101: 0 | AG101: 0
AE102: 0 | AG102: 0
AE103: 0 | AG103: 0
AE104: 0 | AG104: 0
AE105: 0 | AG105: 0
AE106: 0 | AG106: 0

Sheet Tennet-CZ

Sheet 50Hz-CZ

Sheet 50Hz-PL

Sheet CZ-PL

Sheet SK-PL

Sheet 31.12 bidy
A1: Year | B1: Month | C1: Day | D1: AuctionId | E1: Border | F1: Days | G1: TimeTable | H1: Bid Quantity | I1: Bid Price
A2: 2017 | B2: 12 | C2: 2017-12-31 | D2: CEEXD-D-DAILYPRODU-171231-01 | E2: DE(TenneT)-CZ | F2: 2017/12/31 - 2018/01/01 | G2: 00:00-01:00 | H2: 65 | I2: 50.00
A3: 2017 | B3: 12 | C3: 2017-12-31 | D3: CEEXD-D-DAILYPRODU-171231-01 | E3: DE(TenneT)-CZ | F3: 2017/12/31 - 2018/01/01 | G3: 00:00-01:00 | H3: 105 | I3: 20.00
A4: 2017 | B4: 12 | C4: 2017-12-31 | D4: CEEXD-D-DAILYPRODU-171231-01 | E4: DE(TenneT)-CZ | F4: 2017/12/31 - 2018/01/01 | G4: 00:00-01:00 | H4: 131 | I4: 11.00
A5: 2017 | B5: 12 | C5: 2017-12-31 | D5: CEEXD-D-DAILYPRODU-171231-01 | E5: DE(50Hz)-CZ | F5: 2017/12/31 - 2018/01/01 | G5: 00:00-01:00 | H5: 25 | I5: 9.60
A6: 2017 | B6: 12 | C6: 2017-12-31 | D6: CEEXD-D-DAILYPRODU-171231-01 | E6: DE(TenneT)-CZ | F6: 2017/12/31 - 2018/01/01 | G6: 00:00-01:00 | H6: 231 | I6: 8.51
A7: 2017 | B7: 12 | C7: 2017-12-31 | D7: CEEXD-D-DAILYPRODU-171231-01 | E7: DE(50Hz)-CZ | F7: 2017/12/31 - 2018/01/01 | G7: 00:00-01:00 | H7: 125 | I7: 8.51
A8: 2017 | B8: 12 | C8: 2017-12-31 | D8: CEEXD-D-DAILYPRODU-171231-01 | E8: DE(50Hz)-CZ | F8: 2017/12/31 - 2018/01/01 | G8: 00:00-01:00 | H8: 150 | I8: 7.78
A9: 2017 | B9: 12 | C9: 2017-12-31 | D9: CEEXD-D-DAILYPRODU-171231-01 | E9: DE(TenneT)-CZ | F9: 2017/12/31 - 2018/01/01 | G9: 00:00-01:00 | H9: 251 | I9: 7.00
A10: 2017 | B10: 12 | C10: 2017-12-31 | D10: CEEXD-D-DAILYPRODU-171231-01 | E10: DE(50Hz)-CZ | F10: 2017/12/31 - 2018/01/01 | G10: 00:00-01:00 | H10: 170 | I10: 7.00
A11: 2017 | B11: 12 | C11: 2017-12-31 | D11: CEEXD-D-DAILYPRODU-171231-01 | E11: DE(50Hz)-CZ | F11: 2017/12/31 - 2018/01/01 | G11: 00:00-01:00 | H11: 195 | I11: 6.30
A12: 2017 | B12: 12 | C12: 2017-12-31 | D12: CEEXD-D-DAILYPRODU-171231-01 | E12: DE(50Hz)-CZ | F12: 2017/12/31 - 2018/01/01 | G12: 00:00-01:00 | H12: 245 | I12: 5.69
A13: 2017 | B13: 12 | C13: 2017-12-31 | D13: CEEXD-D-DAILYPRODU-171231-01 | E13: DE(TenneT)-CZ | F13: 2017/12/31 - 2018/01/01 | G13: 00:00-01:00 | H13: 276 | I13: 5.60
A14: 2017 | B14: 12 | C14: 2017-12-31 | D14: CEEXD-D-DAILYPRODU-171231-01 | E14: DE(50Hz)-CZ | F14: 2017/12/31 - 2018/01/01 | G14: 00:00-01:00 | H14: 345 | I14: 5.01
A15: 2017 | B15: 12 | C15: 2017-12-31 | D15: CEEXD-D-DAILYPRODU-171231-01 | E15: DE(TenneT)-CZ | F15: 2017/12/31 - 2018/01/01 | G15: 00:00-01:00 | H15: 281 | I15: 5.00
A16: 2017 | B16: 12 | C16: 2017-12-31 | D16: CEEXD-D-DAILYPRODU-171231-01 | E16: DE(50Hz)-CZ | F16: 2017/12/31 - 2018/01/01 | G16: 00:00-01:00 | H16: 395 | I16: 4.85
A17: 2017 | B17: 12 | C17: 2017-12-31 | D17: CEEXD-D-DAILYPRODU-171231-01 | E17: DE(TenneT)-CZ | F17: 2017/12/31 - 2018/01/01 | G17: 00:00-01:00 | H17: 381 | I17: 4.51
A18: 2017 | B18: 12 | C18: 2017-12-31 | D18: CEEXD-D-DAILYPRODU-171231-01 | E18: DE(50Hz)-CZ | F18: 2017/12/31 - 2018/01/01 | G18: 00:00-01:00 | H18: 400 | I18: 4.50
A19: 2017 | B19: 12 | C19: 2017-12-31 | D19: CEEXD-D-DAILYPRODU-171231-01 | E19: DE(TenneT)-CZ | F19: 2017/12/31 - 2018/01/01 | G19: 00:00-01:00 | H19: 406 | I19: 4.42
A20: 2017 | B20: 12 | C20: 2017-12-31 | D20: CEEXD-D-DAILYPRODU-171231-01 | E20: DE(TenneT)-CZ | F20: 2017/12/31 - 2018/01/01 | G20: 00:00-01:00 | H20: 428 | I20: 3.55
A21: 2017 | B21: 12 | C21: 2017-12-31 | D21: CEEXD-D-DAILYPRODU-171231-01 | E21: DE(50Hz)-CZ | F21: 2017/12/31 - 2018/01/01 | G21: 00:00-01:00 | H21: 422 | I21: 3.55
A22: 2017 | B22: 12 | C22: 2017-12-31 | D22: CEEXD-D-DAILYPRODU-171231-01 | E22: DE(TenneT)-CZ | F22: 2017/12/31 - 2018/01/01 | G22: 00:00-01:00 | H22: 453 | I22: 3.49
A23: 2017 | B23: 12 | C23: 2017-12-31 | D23: CEEXD-D-DAILYPRODU-171231-01 | E23: DE(TenneT)-CZ | F23: 2017/12/31 - 2018/01/01 | G23: 00:00-01:00 | H23: 495 | I23: 3.22
A24: 2017 | B24: 12 | C24: 2017-12-31 | D24: CEEXD-D-DAILYPRODU-171231-01 | E24: DE(50Hz)-CZ | F24: 2017/12/31 - 2018/01/01 | G24: 00:00-01:00 | H24: 472 | I24: 3.22
A25: 2017 | B25: 12 | C25: 2017-12-31 | D25: CEEXD-D-DAILYPRODU-171231-01 | E25: DE(TenneT)-CZ | F25: 2017/12/31 - 2018/01/01 | G25: 00:00-01:00 | H25: 500 | I25: 3.00
A26: 2017 | B26: 12 | C26: 2017-12-31 | D26: CEEXD-D-DAILYPRODU-171231-01 | E26: DE(50Hz)-CZ | F26: 2017/12/31 - 2018/01/01 | G26: 00:00-01:00 | H26: 522 | I26: 2.74
A27: 2017 | B27: 12 | C27: 2017-12-31 | D27: CEEXD-D-DAILYPRODU-171231-01 | E27: DE(50Hz)-CZ | F27: 2017/12/31 - 2018/01/01 | G27: 00:00-01:00 | H27: 527 | I27: 2.50
A28: 2017 | B28: 12 | C28: 2017-12-31 | D28: CEEXD-D-DAILYPRODU-171231-01 | E28: DE(TenneT)-CZ | F28: 2017/12/31 - 2018/01/01 | G28: 00:00-01:00 | H28: 530 | I28: 2.00
A29: 2017 | B29: 12 | C29: 2017-12-31 | D29: CEEXD-D-DAILYPRODU-171231-01 | E29: DE(TenneT)-CZ | F29: 2017/12/31 - 2018/01/01 | G29: 00:00-01:00 | H29: 555 | I29: 1.93
A30: 2017 | B30: 12 | C30: 2017-12-31 | D30: CEEXD-D-DAILYPRODU-171231-01 | E30: DE(TenneT)-CZ | F30: 2017/12/31 - 2018/01/01 | G30: 00:00-01:00 | H30: 565 | I30: 1.90
A31: 2017 | B31: 12 | C31: 2017-12-31 | D31: CEEXD-D-DAILYPRODU-171231-01 | E31: DE(50Hz)-CZ | F31: 2017/12/31 - 2018/01/01 | G31: 00:00-01:00 | H31: 577 | I31: 1.67
A32: 2017 | B32: 12 | C32: 2017-12-31 | D32: CEEXD-D-DAILYPRODU-171231-01 | E32: DE(50Hz)-CZ | F32: 2017/12/31 - 2018/01/01 | G32: 00:00-01:00 | H32: 599 | I32: 1.66
A33: 2017 | B33: 12 | C33: 2017-12-31 | D33: CEEXD-D-DAILYPRODU-171231-01 | E33: DE(TenneT)-CZ | F33: 2017/12/31 - 2018/01/01 | G33: 00:00-01:00 | H33: 587 | I33: 1.66
A34: 2017 | B34: 12 | C34: 2017-12-31 | D34: CEEXD-D-DAILYPRODU-171231-01 | E34: DE(50Hz)-CZ | F34: 2017/12/31 - 2018/01/01 | G34: 00:00-01:00 | H34: 649 | I34: 1.55
A35: 2017 | B35: 12 | C35: 2017-12-31 | D35: CEEXD-D-DAILYPRODU-171231-01 | E35: DE(50Hz)-CZ | F35: 2017/12/31 - 2018/01/01 | G35: 00:00-01:00 | H35: 659 | I35: 1.50
A36: 2017 | B36: 12 | C36: 2017-12-31 | D36: CEEXD-D-DAILYPRODU-171231-01 | E36: DE(TenneT)-CZ | F36: 2017/12/31 - 2018/01/01 | G36: 00:00-01:00 | H36: 612 | I36: 1.07
A37: 2017 | B37: 12 | C37: 2017-12-31 | D37: CEEXD-D-DAILYPRODU-171231-01 | E37: DE(TenneT)-CZ | F37: 2017/12/31 - 2018/01/01 | G37: 00:00-01:00 | H37: 662 | I37: 1.01
A38: 2017 | B38: 12 | C38: 2017-12-31 | D38: CEEXD-D-DAILYPRODU-171231-01 | E38: CZ-DE(TenneT) | F38: 2017/12/31 - 2018/01/01 | G38: 00:00-01:00 | H38: 75 | I38: 1.00
A39: 2017 | B39: 12 | C39: 2017-12-31 | D39: CEEXD-D-DAILYPRODU-171231-01 | E39: DE(TenneT)-CZ | F39: 2017/12/31 - 2018/01/01 | G39: 00:00-01:00 | H39: 684 | I39: 0.88
A40: 2017 | B40: 12 | C40: 2017-12-31 | D40: CEEXD-D-DAILYPRODU-171231-01 | E40: DE(50Hz)-CZ | F40: 2017/12/31 - 2018/01/01 | G40: 00:00-01:00 | H40: 681 | I40: 0.88
A41: 2017 | B41: 12 | C41: 2017-12-31 | D41: CEEXD-D-DAILYPRODU-171231-01 | E41: DE(50Hz)-CZ | F41: 2017/12/31 - 2018/01/01 | G41: 00:00-01:00 | H41: 731 | I41: 0.81
A42: 2017 | B42: 12 | C42: 2017-12-31 | D42: CEEXD-D-DAILYPRODU-171231-01 | E42: DE(50Hz)-CZ | F42: 2017/12/31 - 2018/01/01 | G42: 00:00-01:00 | H42: 766 | I42: 0.80
A43: 2017 | B43: 12 | C43: 2017-12-31 | D43: CEEXD-D-DAILYPRODU-171231-01 | E43: DE(TenneT)-CZ | F43: 2017/12/31 - 2018/01/01 | G43: 00:00-01:00 | H43: 729 | I43: 0.80
A44: 2017 | B44: 12 | C44: 2017-12-31 | D44: CEEXD-D-DAILYPRODU-171231-01 | E44: DE(50Hz)-CZ | F44: 2017/12/31 - 2018/01/01 | G44: 00:00-01:00 | H44: 876 | I44: 0.77
A45: 2017 | B45: 12 | C45: 2017-12-31 | D45: CEEXD-D-DAILYPRODU-171231-01 | E45: CZ-DE(TenneT) | F45: 2017/12/31 - 2018/01/01 | G45: 00:00-01:00 | H45: 105 | I45: 0.76
A46: 2017 | B46: 12 | C46: 2017-12-31 | D46: CEEXD-D-DAILYPRODU-171231-01 | E46: CZ-DE(50Hz) | F46: 2017/12/31 - 2018/01/01 | G46: 00:00-01:00 | H46: 30 | I46: 0.76
A47: 2017 | B47: 12 | C47: 2017-12-31 | D47: CEEXD-D-DAILYPRODU-171231-01 | E47: DE(50Hz)-CZ | F47: 2017/12/31 - 2018/01/01 | G47: 00:00-01:00 | H47: 886 | I47: 0.71
A48: 2017 | B48: 12 | C48: 2017-12-31 | D48: CEEXD-D-DAILYPRODU-171231-01 | E48: DE(TenneT)-CZ | F48: 2017/12/31 - 2018/01/01 | G48: 00:00-01:00 | H48: 739 | I48: 0.71
A49: 2017 | B49: 12 | C49: 2017-12-31 | D49: CEEXD-D-DAILYPRODU-171231-01 | E49: CZ-DE(TenneT) | F49: 2017/12/31 - 2018/01/01 | G49: 00:00-01:00 | H49: 155 | I49: 0.70
A50: 2017 | B50: 12 | C50: 2017-12-31 | D50: CEEXD-D-DAILYPRODU-171231-01 | E50: CZ-DE(50Hz) | F50: 2017/12/31 - 2018/01/01 | G50: 00:00-01:00 | H50: 80 | I50: 0.70
A51: 2017 | B51: 12 | C51: 2017-12-31 | D51: CEEXD-D-DAILYPRODU-171231-01 | E51: DE(50Hz)-CZ | F51: 2017/12/31 - 2018/01/01 | G51: 00:00-01:00 | H51: 911 | I51: 0.69
A52: 2017 | B52: 12 | C52: 2017-12-31 | D52: CEEXD-D-DAILYPRODU-171231-01 | E52: CZ-DE(TenneT) | F52: 2017/12/31 - 2018/01/01 | G52: 00:00-01:00 | H52: 170 | I52: 0.63
A53: 2017 | B53: 12 | C53: 2017-12-31 | D53: CEEXD-D-DAILYPRODU-171231-01 | E53: CZ-DE(50Hz) | F53: 2017/12/31 - 2018/01/01 | G53: 00:00-01:00 | H53: 95 | I53: 0.63
A54: 2017 | B54: 12 | C54: 2017-12-31 | D54: CEEXD-D-DAILYPRODU-171231-01 | E54: DE(50Hz)-CZ | F54: 2017/12/31 - 2018/01/01 | G54: 00:00-01:00 | H54: 921 | I54: 0.61
A55: 2017 | B55: 12 | C55: 2017-12-31 | D55: CEEXD-D-DAILYPRODU-171231-01 | E55: DE(TenneT)-CZ | F55: 2017/12/31 - 2018/01/01 | G55: 00:00-01:00 | H55: 749 | I55: 0.61
A56: 2017 | B56: 12 | C56: 2017-12-31 | D56: CEEXD-D-DAILYPRODU-171231-01 | E56: CZ-PL | F56: 2017/12/31 - 2018/01/01 | G56: 00:00-01:00 | H56: 0 | I56: 0.60
A57: 2017 | B57: 12 | C57: 2017-12-31 | D57: CEEXD-D-DAILYPRODU-171231-01 | E57: DE(50Hz)-PL | F57: 2017/12/31 - 2018/01/01 | G57: 00:00-01:00 | H57: 0 | I57: 0.60
A58: 2017 | B58: 12 | C58: 2017-12-31 | D58: CEEXD-D-DAILYPRODU-171231-01 | E58: CZ-DE(50Hz) | F58: 2017/12/31 - 2018/01/01 | G58: 00:00-01:00 | H58: 125 | I58: 0.56
A59: 2017 | B59: 12 | C59: 2017-12-31 | D59: CEEXD-D-DAILYPRODU-171231-01 | E59: DE(50Hz)-CZ | F59: 2017/12/31 - 2018/01/01 | G59: 00:00-01:00 | H59: 941 | I59: 0.55
A60: 2017 | B60: 12 | C60: 2017-12-31 | D60: CEEXD-D-DAILYPRODU-171231-01 | E60: DE(50Hz)-CZ | F60: 2017/12/31 - 2018/01/01 | G60: 00:00-01:00 | H60: 1056 | I60: 0.51
A61: 2017 | B61: 12 | C61: 2017-12-31 | D61: CEEXD-D-DAILYPRODU-171231-01 | E61: DE(TenneT)-CZ | F61: 2017/12/31 - 2018/01/01 | G61: 00:00-01:00 | H61: 789 | I61: 0.51
A62: 2017 | B62: 12 | C62: 2017-12-31 | D62: CEEXD-D-DAILYPRODU-171231-01 | E62: DE(TenneT)-CZ | F62: 2017/12/31 - 2018/01/01 | G62: 00:00-01:00 | H62: 809 | I62: 0.50
A63: 2017 | B63: 12 | C63: 2017-12-31 | D63: CEEXD-D-DAILYPRODU-171231-01 | E63: CZ-DE(TenneT) | F63: 2017/12/31 - 2018/01/01 | G63: 00:00-01:00 | H63: 220 | I63: 0.50
A64: 2017 | B64: 12 | C64: 2017-12-31 | D64: CEEXD-D-DAILYPRODU-171231-01 | E64: DE(50Hz)-CZ | F64: 2017/12/31 - 2018/01/01 | G64: 00:00-01:00 | H64: 1106 | I64: 0.46
A65: 2017 | B65: 12 | C65: 2017-12-31 | D65: CEEXD-D-DAILYPRODU-171231-01 | E65: CZ-DE(TenneT) | F65: 2017/12/31 - 2018/01/01 | G65: 00:00-01:00 | H65: 250 | I65: 0.45
A66: 2017 | B66: 12 | C66: 2017-12-31 | D66: CEEXD-D-DAILYPRODU-171231-01 | E66: DE(50Hz)-CZ | F66: 2017/12/31 - 2018/01/01 | G66: 00:00-01:00 | H66: 1128 | I66: 0.44
A67: 2017 | B67: 12 | C67: 2017-12-31 | D67: CEEXD-D-DAILYPRODU-171231-01 | E67: DE(TenneT)-CZ | F67: 2017/12/31 - 2018/01/01 | G67: 00:00-01:00 | H67: 831 | I67: 0.44
A68: 2017 | B68: 12 | C68: 2017-12-31 | D68: CEEXD-D-DAILYPRODU-171231-01 | E68: DE(50Hz)-PL | F68: 2017/12/31 - 2018/01/01 | G68: 00:00-01:00 | H68: 0 | I68: 0.42
A69: 2017 | B69: 12 | C69: 2017-12-31 | D69: CEEXD-D-DAILYPRODU-171231-01 | E69: DE(50Hz)-CZ | F69: 2017/12/31 - 2018/01/01 | G69: 00:00-01:00 | H69: 1153 | I69: 0.41
A70: 2017 | B70: 12 | C70: 2017-12-31 | D70: CEEXD-D-DAILYPRODU-171231-01 | E70: DE(TenneT)-CZ | F70: 2017/12/31 - 2018/01/01 | G70: 00:00-01:00 | H70: 856 | I70: 0.41
A71: 2017 | B71: 12 | C71: 2017-12-31 | D71: CEEXD-D-DAILYPRODU-171231-01 | E71: CZ-DE(TenneT) | F71: 2017/12/31 - 2018/01/01 | G71: 00:00-01:00 | H71: 270 | I71: 0.41
A72: 2017 | B72: 12 | C72: 2017-12-31 | D72: CEEXD-D-DAILYPRODU-171231-01 | E72: CZ-DE(50Hz) | F72: 2017/12/31 - 2018/01/01 | G72: 00:00-01:00 | H72: 145 | I72: 0.41
A73: 2017 | B73: 12 | C73: 2017-12-31 | D73: CEEXD-D-DAILYPRODU-171231-01 | E73: DE(50Hz)-CZ | F73: 2017/12/31 - 2018/01/01 | G73: 00:00-01:00 | H73: 1173 | I73: 0.33
A74: 2017 | B74: 12 | C74: 2017-12-31 | D74: CEEXD-D-DAILYPRODU-171231-01 | E74: DE(50Hz)-CZ | F74: 2017/12/31 - 2018/01/01 | G74: 00:00-01:00 | H74: 1198 | I74: 0.31
A75: 2017 | B75: 12 | C75: 2017-12-31 | D75: CEEXD-D-DAILYPRODU-171231-01 | E75: DE(TenneT)-CZ | F75: 2017/12/31 - 2018/01/01 | G75: 00:00-01:00 | H75: 881 | I75: 0.31
A76: 2017 | B76: 12 | C76: 2017-12-31 | D76: CEEXD-D-DAILYPRODU-171231-01 | E76: CZ-DE(TenneT) | F76: 2017/12/31 - 2018/01/01 | G76: 00:00-01:00 | H76: 290 | I76: 0.31
A77: 2017 | B77: 12 | C77: 2017-12-31 | D77: CEEXD-D-DAILYPRODU-171231-01 | E77: CZ-DE(50Hz) | F77: 2017/12/31 - 2018/01/01 | G77: 00:00-01:00 | H77: 165 | I77: 0.31
A78: 2017 | B78: 12 | C78: 2017-12-31 | D78: CEEXD-D-DAILYPRODU-171231-01 | E78: DE(50Hz)-PL | F78: 2017/12/31 - 2018/01/01 | G78: 00:00-01:00 | H78: 0 | I78: 0.29
A79: 2017 | B79: 12 | C79: 2017-12-31 | D79: CEEXD-D-DAILYPRODU-171231-01 | E79: DE(50Hz)-CZ | F79: 2017/12/31 - 2018/01/01 | G79: 00:00-01:00 | H79: 1208 | I79: 0.27
A80: 2017 | B80: 12 | C80: 2017-12-31 | D80: CEEXD-D-DAILYPRODU-171231-01 | E80: DE(TenneT)-CZ | F80: 2017/12/31 - 2018/01/01 | G80: 00:00-01:00 | H80: 891 | I80: 0.27
A81: 2017 | B81: 12 | C81: 2017-12-31 | D81: CEEXD-D-DAILYPRODU-171231-01 | E81: CZ-PL | F81: 2017/12/31 - 2018/01/01 | G81: 00:00-01:00 | H81: 0 | I81: 0.27
A82: 2017 | B82: 12 | C82: 2017-12-31 | D82: CEEXD-D-DAILYPRODU-171231-01 | E82: DE(50Hz)-CZ | F82: 2017/12/31 - 2018/01/01 | G82: 00:00-01:00 | H82: 1258 | I82: 0.26
A83: 2017 | B83: 12 | C83: 2017-12-31 | D83: CEEXD-D-DAILYPRODU-171231-01 | E83: CZ-DE(TenneT) | F83: 2017/12/31 - 2018/01/01 | G83: 00:00-01:00 | H83: 315 | I83: 0.26
A84: 2017 | B84: 12 | C84: 2017-12-31 | D84: CEEXD-D-DAILYPRODU-171231-01 | E84: CZ-DE(50Hz) | F84: 2017/12/31 - 2018/01/01 | G84: 00:00-01:00 | H84: 190 | I84: 0.26
A85: 2017 | B85: 12 | C85: 2017-12-31 | D85: CEEXD-D-DAILYPRODU-171231-01 | E85: DE(TenneT)-CZ | F85: 2017/12/31 - 2018/01/01 | G85: 00:00-01:00 | H85: 941 | I85: 0.24
A86: 2017 | B86: 12 | C86: 2017-12-31 | D86: CEEXD-D-DAILYPRODU-171231-01 | E86: CZ-DE(TenneT) | F86: 2017/12/31 - 2018/01/01 | G86: 00:00-01:00 | H86: 330 | I86: 0.23
A87: 2017 | B87: 12 | C87: 2017-12-31 | D87: CEEXD-D-DAILYPRODU-171231-01 | E87: CZ-DE(50Hz) | F87: 2017/12/31 - 2018/01/01 | G87: 00:00-01:00 | H87: 205 | I87: 0.23
A88: 2017 | B88: 12 | C88: 2017-12-31 | D88: CEEXD-D-DAILYPRODU-171231-01 | E88: DE(50Hz)-CZ | F88: 2017/12/31 - 2018/01/01 | G88: 00:00-01:00 | H88: 1278 | I88: 0.22
A89: 2017 | B89: 12 | C89: 2017-12-31 | D89: CEEXD-D-DAILYPRODU-171231-01 | E89: DE(50Hz)-CZ | F89: 2017/12/31 - 2018/01/01 | G89: 00:00-01:00 | H89: 1303 | I89: 0.21
A90: 2017 | B90: 12 | C90: 2017-12-31 | D90: CEEXD-D-DAILYPRODU-171231-01 | E90: DE(TenneT)-CZ | F90: 2017/12/31 - 2018/01/01 | G90: 00:00-01:00 | H90: 966 | I90: 0.21
A91: 2017 | B91: 12 | C91: 2017-12-31 | D91: CEEXD-D-DAILYPRODU-171231-01 | E91: CZ-DE(TenneT) | F91: 2017/12/31 - 2018/01/01 | G91: 00:00-01:00 | H91: 430 | I91: 0.21
A92: 2017 | B92: 12 | C92: 2017-12-31 | D92: CEEXD-D-DAILYPRODU-171231-01 | E92: CZ-DE(50Hz) | F92: 2017/12/31 - 2018/01/01 | G92: 00:00-01:00 | H92: 305 | I92: 0.21
A93: 2017 | B93: 12 | C93: 2017-12-31 | D93: CEEXD-D-DAILYPRODU-171231-01 | E93: DE(50Hz)-CZ | F93: 2017/12/31 - 2018/01/01 | G93: 00:00-01:00 | H93: 1308 | I93: 0.20
A94: 2017 | B94: 12 | C94: 2017-12-31 | D94: CEEXD-D-DAILYPRODU-171231-01 | E94: DE(TenneT)-CZ | F94: 2017/12/31 - 2018/01/01 | G94: 00:00-01:00 | H94: 991 | I94: 0.20
A95: 2017 | B95: 12 | C95: 2017-12-31 | D95: CEEXD-D-DAILYPRODU-171231-01 | E95: CZ-DE(TenneT) | F95: 2017/12/31 - 2018/01/01 | G95: 00:00-01:00 | H95: 450 | I95: 0.20
A96: 2017 | B96: 12 | C96: 2017-12-31 | D96: CEEXD-D-DAILYPRODU-171231-01 | E96: DE(50Hz)-CZ | F96: 2017/12/31 - 2018/01/01 | G96: 00:00-01:00 | H96: 1318 | I96: 0.19
A97: 2017 | B97: 12 | C97: 2017-12-31 | D97: CEEXD-D-DAILYPRODU-171231-01 | E97: DE(TenneT)-CZ | F97: 2017/12/31 - 2018/01/01 | G97: 00:00-01:00 | H97: 1001 | I97: 0.19
A98: 2017 | B98: 12 | C98: 2017-12-31 | D98: CEEXD-D-DAILYPRODU-171231-01 | E98: CZ-DE(50Hz) | F98: 2017/12/31 - 2018/01/01 | G98: 00:00-01:00 | H98: 320 | I98: 0.17
A99: 2017 | B99: 12 | C99: 2017-12-31 | D99: CEEXD-D-DAILYPRODU-171231-01 | E99: DE(50Hz)-CZ | F99: 2017/12/31 - 2018/01/01 | G99: 00:00-01:00 | H99: 1368 | I99: 0.16
A100: 2017 | B100: 12 | C100: 2017-12-31 | D100: CEEXD-D-DAILYPRODU-171231-01 | E100: DE(TenneT)-CZ | F100: 2017/12/31 - 2018/01/01 | G100: 00:00-01:00 | H100: 1051 | I100: 0.16
A101: 2017 | B101: 12 | C101: 2017-12-31 | D101: CEEXD-D-DAILYPRODU-171231-01 | E101: CZ-DE(TenneT) | F101: 2017/12/31 - 2018/01/01 | G101: 00:00-01:00 | H101: 475 | I101: 0.16
A102: 2017 | B102: 12 | C102: 2017-12-31 | D102: CEEXD-D-DAILYPRODU-171231-01 | E102: CZ-DE(50Hz) | F102: 2017/12/31 - 2018/01/01 | G102: 00:00-01:00 | H102: 345 | I102: 0.16
A103: 2017 | B103: 12 | C103: 2017-12-31 | D103: CEEXD-D-DAILYPRODU-171231-01 | E103: DE(50Hz)-CZ | F103: 2017/12/31 - 2018/01/01 | G103: 00:00-01:00 | H103: 1373 | I103: 0.15
A104: 2017 | B104: 12 | C104: 2017-12-31 | D104: CEEXD-D-DAILYPRODU-171231-01 | E104: DE(TenneT)-CZ | F104: 2017/12/31 - 2018/01/01 | G104: 00:00-01:00 | H104: 1056 | I104: 0.15
A105: 2017 | B105: 12 | C105: 2017-12-31 | D105: CEEXD-D-DAILYPRODU-171231-01 | E105: CZ-DE(TenneT) | F105: 2017/12/31 - 2018/01/01 | G105: 00:00-01:00 | H105: 525 | I105: 0.15
A106: 2017 | B106: 12 | C106: 2017-12-31 | D106: CEEXD-D-DAILYPRODU-171231-01 | E106: CZ-DE(50Hz) | F106: 2017/12/31 - 2018/01/01 | G106: 00:00-01:00 | H106: 395 | I106: 0.15
A107: 2017 | B107: 12 | C107: 2017-12-31 | D107: CEEXD-D-DAILYPRODU-171231-01 | E107: CZ-DE(TenneT) | F107: 2017/12/31 - 2018/01/01 | G107: 00:00-01:00 | H107: 540 | I107: 0.14
A108: 2017 | B108: 12 | C108: 2017-12-31 | D108: CEEXD-D-DAILYPRODU-171231-01 | E108: DE(50Hz)-CZ | F108: 2017/12/31 - 2018/01/01 | G108: 00:00-01:00 | H108: 1383 | I108: 0.13
A109: 2017 | B109: 12 | C109: 2017-12-31 | D109: CEEXD-D-DAILYPRODU-171231-01 | E109: DE(TenneT)-CZ | F109: 2017/12/31 - 2018/01/01 | G109: 00:00-01:00 | H109: 1116 | I109: 0.13
A110: 2017 | B110: 12 | C110: 2017-12-31 | D110: CEEXD-D-DAILYPRODU-171231-01 | E110: CZ-PL | F110: 2017/12/31 - 2018/01/01 | G110: 00:00-01:00 | H110: 0 | I110: 0.12
A111: 2017 | B111: 12 | C111: 2017-12-31 | D111: CEEXD-D-DAILYPRODU-171231-01 | E111: DE(50Hz)-CZ | F111: 2017/12/31 - 2018/01/01 | G111: 00:00-01:00 | H111: 1393 | I111: 0.11
A112: 2017 | B112: 12 | C112: 2017-12-31 | D112: CEEXD-D-DAILYPRODU-171231-01 | E112: DE(TenneT)-CZ | F112: 2017/12/31 - 2018/01/01 | G112: 00:00-01:00 | H112: 1126 | I112: 0.11
A113: 2017 | B113: 12 | C113: 2017-12-31 | D113: CEEXD-D-DAILYPRODU-171231-01 | E113: CZ-DE(TenneT) | F113: 2017/12/31 - 2018/01/01 | G113: 00:00-01:00 | H113: 565 | I113: 0.11
A114: 2017 | B114: 12 | C114: 2017-12-31 | D114: CEEXD-D-DAILYPRODU-171231-01 | E114: CZ-DE(50Hz) | F114: 2017/12/31 - 2018/01/01 | G114: 00:00-01:00 | H114: 445 | I114: 0.11
A115: 2017 | B115: 12 | C115: 2017-12-31 | D115: CEEXD-D-DAILYPRODU-171231-01 | E115: DE(50Hz)-CZ | F115: 2017/12/31 - 2018/01/01 | G115: 00:00-01:00 | H115: 1443 | I115: 0.10
A116: 2017 | B116: 12 | C116: 2017-12-31 | D116: CEEXD-D-DAILYPRODU-171231-01 | E116: DE(TenneT)-CZ | F116: 2017/12/31 - 2018/01/01 | G116: 00:00-01:00 | H116: 1176 | I116: 0.10
A117: 2017 | B117: 12 | C117: 2017-12-31 | D117: CEEXD-D-DAILYPRODU-171231-01 | E117: CZ-DE(TenneT) | F117: 2017/12/31 - 2018/01/01 | G117: 00:00-01:00 | H117: 590 | I117: 0.10
A118: 2017 | B118: 12 | C118: 2017-12-31 | D118: CEEXD-D-DAILYPRODU-171231-01 | E118: DE(50Hz)-CZ | F118: 2017/12/31 - 2018/01/01 | G118: 00:00-01:00 | H118: 1453 | I118: 0.09
A119: 2017 | B119: 12 | C119: 2017-12-31 | D119: CEEXD-D-DAILYPRODU-171231-01 | E119: DE(TenneT)-CZ | F119: 2017/12/31 - 2018/01/01 | G119: 00:00-01:00 | H119: 1186 | I119: 0.09
A120: 2017 | B120: 12 | C120: 2017-12-31 | D120: CEEXD-D-DAILYPRODU-171231-01 | E120: DE(50Hz)-CZ | F120: 2017/12/31 - 2018/01/01 | G120: 00:00-01:00 | H120: 1503 | I120: 0.08
A121: 2017 | B121: 12 | C121: 2017-12-31 | D121: CEEXD-D-DAILYPRODU-171231-01 | E121: DE(TenneT)-CZ | F121: 2017/12/31 - 2018/01/01 | G121: 00:00-01:00 | H121: 1286 | I121: 0.08
A122: 2017 | B122: 12 | C122: 2017-12-31 | D122: CEEXD-D-DAILYPRODU-171231-01 | E122: CZ-DE(TenneT) | F122: 2017/12/31 - 2018/01/01 | G122: 00:00-01:00 | H122: 615 | I122: 0.08
A123: 2017 | B123: 12 | C123: 2017-12-31 | D123: CEEXD-D-DAILYPRODU-171231-01 | E123: DE(50Hz)-CZ | F123: 2017/12/31 - 2018/01/01 | G123: 00:00-01:00 | H123: 1513 | I123: 0.07
A124: 2017 | B124: 12 | C124: 2017-12-31 | D124: CEEXD-D-DAILYPRODU-171231-01 | E124: DE(TenneT)-CZ | F124: 2017/12/31 - 2018/01/01 | G124: 00:00-01:00 | H124: 1296 | I124: 0.07
A125: 2017 | B125: 12 | C125: 2017-12-31 | D125: CEEXD-D-DAILYPRODU-171231-01 | E125: CZ-DE(50Hz) | F125: 2017/12/31 - 2018/01/01 | G125: 00:00-01:00 | H125: 470 | I125: 0.07
A126: 2017 | B126: 12 | C126: 2017-12-31 | D126: CEEXD-D-DAILYPRODU-171231-01 | E126: CZ-DE(TenneT) | F126: 2017/12/31 - 2018/01/01 | G126: 00:00-01:00 | H126: 665 | I126: 0.06
A127: 2017 | B127: 12 | C127: 2017-12-31 | D127: CEEXD-D-DAILYPRODU-171231-01 | E127: CZ-DE(50Hz) | F127: 2017/12/31 - 2018/01/01 | G127: 00:00-01:00 | H127: 520 | I127: 0.06
A128: 2017 | B128: 12 | C128: 2017-12-31 | D128: CEEXD-D-DAILYPRODU-171231-01 | E128: DE(50Hz)-CZ | F128: 2017/12/31 - 2018/01/01 | G128: 00:00-01:00 | H128: 1533 | I128: 0.05
A129: 2017 | B129: 12 | C129: 2017-12-31 | D129: CEEXD-D-DAILYPRODU-171231-01 | E129: DE(TenneT)-CZ | F129: 2017/12/31 - 2018/01/01 | G129: 00:00-01:00 | H129: 1361 | I129: 0.05
A130: 2017 | B130: 12 | C130: 2017-12-31 | D130: CEEXD-D-DAILYPRODU-171231-01 | E130: CZ-DE(TenneT) | F130: 2017/12/31 - 2018/01/01 | G130: 00:00-01:00 | H130: 710 | I130: 0.05
A131: 2017 | B131: 12 | C131: 2017-12-31 | D131: CEEXD-D-DAILYPRODU-171231-01 | E131: CZ-DE(50Hz) | F131: 2017/12/31 - 2018/01/01 | G131: 00:00-01:00 | H131: 590 | I131: 0.05
A132: 2017 | B132: 12 | C132: 2017-12-31 | D132: CEEXD-D-DAILYPRODU-171231-01 | E132: PL-CZ | F132: 2017/12/31 - 2018/01/01 | G132: 00:00-01:00 | H132: 75 | I132: 0.05
A133: 2017 | B133: 12 | C133: 2017-12-31 | D133: CEEXD-D-DAILYPRODU-171231-01 | E133: PL-SK | F133: 2017/12/31 - 2018/01/01 | G133: 00:00-01:00 | H133: 25 | I133: 0.05
A134: 2017 | B134: 12 | C134: 2017-12-31 | D134: CEEXD-D-DAILYPRODU-171231-01 | E134: PL-DE(50Hz) | F134: 2017/12/31 - 2018/01/01 | G134: 00:00-01:00 | H134: 25 | I134: 0.05
A135: 2017 | B135: 12 | C135: 2017-12-31 | D135: CEEXD-D-DAILYPRODU-171231-01 | E135: CZ-PL | F135: 2017/12/31 - 2018/01/01 | G135: 00:00-01:00 | H135: 0 | I135: 0.05
A136: 2017 | B136: 12 | C136: 2017-12-31 | D136: CEEXD-D-DAILYPRODU-171231-01 | E136: DE(50Hz)-CZ | F136: 2017/12/31 - 2018/01/01 | G136: 00:00-01:00 | H136: 1583 | I136: 0.04
A137: 2017 | B137: 12 | C137: 2017-12-31 | D137: CEEXD-D-DAILYPRODU-171231-01 | E137: DE(TenneT)-CZ | F137: 2017/12/31 - 2018/01/01 | G137: 00:00-01:00 | H137: 1411 | I137: 0.04
A138: 2017 | B138: 12 | C138: 2017-12-31 | D138: CEEXD-D-DAILYPRODU-171231-01 | E138: CZ-DE(TenneT) | F138: 2017/12/31 - 2018/01/01 | G138: 00:00-01:00 | H138: 765 | I138: 0.04
A139: 2017 | B139: 12 | C139: 2017-12-31 | D139: CEEXD-D-DAILYPRODU-171231-01 | E139: CZ-DE(50Hz) | F139: 2017/12/31 - 2018/01/01 | G139: 00:00-01:00 | H139: 595 | I139: 0.04
A140: 2017 | B140: 12 | C140: 2017-12-31 | D140: CEEXD-D-DAILYPRODU-171231-01 | E140: DE(50Hz)-CZ | F140: 2017/12/31 - 2018/01/01 | G140: 00:00-01:00 | H140: 1633 | I140: 0.03
A141: 2017 | B141: 12 | C141: 2017-12-31 | D141: CEEXD-D-DAILYPRODU-171231-01 | E141: DE(TenneT)-CZ | F141: 2017/12/31 - 2018/01/01 | G141: 00:00-01:00 | H141: 1461 | I141: 0.03
A142: 2017 | B142: 12 | C142: 2017-12-31 | D142: CEEXD-D-DAILYPRODU-171231-01 | E142: CZ-DE(TenneT) | F142: 2017/12/31 - 2018/01/01 | G142: 00:00-01:00 | H142: 925 | I142: 0.03
A143: 2017 | B143: 12 | C143: 2017-12-31 | D143: CEEXD-D-DAILYPRODU-171231-01 | E143: CZ-DE(50Hz) | F143: 2017/12/31 - 2018/01/01 | G143: 00:00-01:00 | H143: 780 | I143: 0.03
A144: 2017 | B144: 12 | C144: 2017-12-31 | D144: CEEXD-D-DAILYPRODU-171231-01 | E144: DE(50Hz)-CZ | F144: 2017/12/31 - 2018/01/01 | G144: 00:00-01:00 | H144: 1713 | I144: 0.02
A145: 2017 | B145: 12 | C145: 2017-12-31 | D145: CEEXD-D-DAILYPRODU-171231-01 | E145: DE(TenneT)-CZ | F145: 2017/12/31 - 2018/01/01 | G145: 00:00-01:00 | H145: 1541 | I145: 0.02
A146: 2017 | B146: 12 | C146: 2017-12-31 | D146: CEEXD-D-DAILYPRODU-171231-01 | E146: CZ-DE(TenneT) | F146: 2017/12/31 - 2018/01/01 | G146: 00:00-01:00 | H146: 1060 | I146: 0.02
A147: 2017 | B147: 12 | C147: 2017-12-31 | D147: CEEXD-D-DAILYPRODU-171231-01 | E147: CZ-DE(50Hz) | F147: 2017/12/31 - 2018/01/01 | G147: 00:00-01:00 | H147: 865 | I147: 0.02
A148: 2017 | B148: 12 | C148: 2017-12-31 | D148: CEEXD-D-DAILYPRODU-171231-01 | E148: PL-CZ | F148: 2017/12/31 - 2018/01/01 | G148: 00:00-01:00 | H148: 130 | I148: 0.02
A149: 2017 | B149: 12 | C149: 2017-12-31 | D149: CEEXD-D-DAILYPRODU-171231-01 | E149: PL-DE(50Hz) | F149: 2017/12/31 - 2018/01/01 | G149: 00:00-01:00 | H149: 40 | I149: 0.02
A150: 2017 | B150: 12 | C150: 2017-12-31 | D150: CEEXD-D-DAILYPRODU-171231-01 | E150: DE(50Hz)-CZ | F150: 2017/12/31 - 2018/01/01 | G150: 00:00-01:00 | H150: 1863 | I150: 0.01
A151: 2017 | B151: 12 | C151: 2017-12-31 | D151: CEEXD-D-DAILYPRODU-171231-01 | E151: DE(TenneT)-CZ | F151: 2017/12/31 - 2018/01/01 | G151: 00:00-01:00 | H151: 1661 | I151: 0.01
A152: 2017 | B152: 12 | C152: 2017-12-31 | D152: CEEXD-D-DAILYPRODU-171231-01 | E152: CZ-DE(TenneT) | F152: 2017/12/31 - 2018/01/01 | G152: 00:00-01:00 | H152: 1220 | I152: 0.01
A153: 2017 | B153: 12 | C153: 2017-12-31 | D153: CEEXD-D-DAILYPRODU-171231-01 | E153: CZ-DE(50Hz) | F153: 2017/12/31 - 2018/01/01 | G153: 00:00-01:00 | H153: 1050 | I153: 0.01
A154: 2017 | B154: 12 | C154: 2017-12-31 | D154: CEEXD-D-DAILYPRODU-171231-01 | E154: PL-DE(50Hz) | F154: 2017/12/31 - 2018/01/01 | G154: 00:00-01:00 | H154: 105 | I154: 0.01
A155: 2017 | B155: 12 | C155: 2017-12-31 | D155: CEEXD-D-DAILYPRODU-171231-01 | E155: DE(50Hz)-CZ | F155: 2017/12/31 - 2018/01/01 | G155: 00:00-01:00 | H155: 3103 | I155: 0.00
A156: 2017 | B156: 12 | C156: 2017-12-31 | D156: CEEXD-D-DAILYPRODU-171231-01 | E156: DE(TenneT)-CZ | F156: 2017/12/31 - 2018/01/01 | G156: 00:00-01:00 | H156: 2898 | I156: 0.00
A157: 2017 | B157: 12 | C157: 2017-12-31 | D157: CEEXD-D-DAILYPRODU-171231-01 | E157: CZ-DE(TenneT) | F157: 2017/12/31 - 2018/01/01 | G157: 00:00-01:00 | H157: 2821 | I157: 0.00
A158: 2017 | B158: 12 | C158: 2017-12-31 | D158: CEEXD-D-DAILYPRODU-171231-01 | E158: CZ-DE(50Hz) | F158: 2017/12/31 - 2018/01/01 | G158: 00:00-01:00 | H158: 2648 | I158: 0.00
A159: 2017 | B159: 12 | C159: 2017-12-31 | D159: CEEXD-D-DAILYPRODU-171231-01 | E159: PL-SK | F159: 2017/12/31 - 2018/01/01 | G159: 00:00-01:00 | H159: 825 | I159: 0.00
A160: 2017 | B160: 12 | C160: 2017-12-31 | D160: CEEXD-D-DAILYPRODU-171231-01 | E160: PL-DE(50Hz) | F160: 2017/12/31 - 2018/01/01 | G160: 00:00-01:00 | H160: 400 | I160: 0.00
A161: 2017 | B161: 12 | C161: 2017-12-31 | D161: CEEXD-D-DAILYPRODU-171231-01 | E161: PL-CZ | F161: 2017/12/31 - 2018/01/01 | G161: 00:00-01:00 | H161: 380 | I161: 0.00
A162: 2017 | B162: 12 | C162: 2017-12-31 | D162: CEEXD-D-DAILYPRODU-171231-01 | E162: CZ-PL | F162: 2017/12/31 - 2018/01/01 | G162: 00:00-01:00 | H162: 0 | I162: 0.00
A163: 2017 | B163: 12 | C163: 2017-12-31 | D163: CEEXD-D-DAILYPRODU-171231-01 | E163: SK-PL | F163: 2017/12/31 - 2018/01/01 | G163: 00:00-01:00 | H163: 0 | I163: 0.00
A164: 2017 | B164: 12 | C164: 2017-12-31 | D164: CEEXD-D-DAILYPRODU-171231-01 | E164: DE(50Hz)-PL | F164: 2017/12/31 - 2018/01/01 | G164: 00:00-01:00 | H164: 0 | I164: 0.00
A165: 2017 | B165: 12 | C165: 2017-12-31 | D165: CEEXD-D-DAILYPRODU-171231-01 | E165: DE(TenneT)-CZ | F165: 2017/12/31 - 2018/01/01 | G165: 01:00-02:00 | H165: 65 | I165: 50.00
A166: 2017 | B166: 12 | C166: 2017-12-31 | D166: CEEXD-D-DAILYPRODU-171231-01 | E166: DE(TenneT)-CZ | F166: 2017/12/31 - 2018/01/01 | G166: 01:00-02:00 | H166: 105 | I166: 20.00
A167: 2017 | B167: 12 | C167: 2017-12-31 | D167: CEEXD-D-DAILYPRODU-171231-01 | E167: DE(TenneT)-CZ | F167: 2017/12/31 - 2018/01/01 | G167: 01:00-02:00 | H167: 131 | I167: 11.00
A168: 2017 | B168: 12 | C168: 2017-12-31 | D168: CEEXD-D-DAILYPRODU-171231-01 | E168: DE(50Hz)-CZ | F168: 2017/12/31 - 2018/01/01 | G168: 01:00-02:00 | H168: 25 | I168: 9.60
A169: 2017 | B169: 12 | C169: 2017-12-31 | D169: CEEXD-D-DAILYPRODU-171231-01 | E169: DE(TenneT)-CZ | F169: 2017/12/31 - 2018/01/01 | G169: 01:00-02:00 | H169: 231 | I169: 8.51
A170: 2017 | B170: 12 | C170: 2017-12-31 | D170: CEEXD-D-DAILYPRODU-171231-01 | E170: DE(50Hz)-CZ | F170: 2017/12/31 - 2018/01/01 | G170: 01:00-02:00 | H170: 125 | I170: 8.51
A171: 2017 | B171: 12 | C171: 2017-12-31 | D171: CEEXD-D-DAILYPRODU-171231-01 | E171: DE(50Hz)-CZ | F171: 2017/12/31 - 2018/01/01 | G171: 01:00-02:00 | H171: 150 | I171: 7.78
A172: 2017 | B172: 12 | C172: 2017-12-31 | D172: CEEXD-D-DAILYPRODU-171231-01 | E172: DE(TenneT)-CZ | F172: 2017/12/31 - 2018/01/01 | G172: 01:00-02:00 | H172: 251 | I172: 7.00
A173: 2017 | B173: 12 | C173: 2017-12-31 | D173: CEEXD-D-DAILYPRODU-171231-01 | E173: DE(50Hz)-CZ | F173: 2017/12/31 - 2018/01/01 | G173: 01:00-02:00 | H173: 170 | I173: 7.00
A174: 2017 | B174: 12 | C174: 2017-12-31 | D174: CEEXD-D-DAILYPRODU-171231-01 | E174: DE(50Hz)-CZ | F174: 2017/12/31 - 2018/01/01 | G174: 01:00-02:00 | H174: 195 | I174: 6.30
A175: 2017 | B175: 12 | C175: 2017-12-31 | D175: CEEXD-D-DAILYPRODU-171231-01 | E175: DE(50Hz)-CZ | F175: 2017/12/31 - 2018/01/01 | G175: 01:00-02:00 | H175: 245 | I175: 5.69
A176: 2017 | B176: 12 | C176: 2017-12-31 | D176: CEEXD-D-DAILYPRODU-171231-01 | E176: DE(TenneT)-CZ | F176: 2017/12/31 - 2018/01/01 | G176: 01:00-02:00 | H176: 276 | I176: 5.60
A177: 2017 | B177: 12 | C177: 2017-12-31 | D177: CEEXD-D-DAILYPRODU-171231-01 | E177: DE(50Hz)-CZ | F177: 2017/12/31 - 2018/01/01 | G177: 01:00-02:00 | H177: 345 | I177: 5.01
A178: 2017 | B178: 12 | C178: 2017-12-31 | D178: CEEXD-D-DAILYPRODU-171231-01 | E178: DE(TenneT)-CZ | F178: 2017/12/31 - 2018/01/01 | G178: 01:00-02:00 | H178: 281 | I178: 5.00
A179: 2017 | B179: 12 | C179: 2017-12-31 | D179: CEEXD-D-DAILYPRODU-171231-01 | E179: DE(50Hz)-CZ | F179: 2017/12/31 - 2018/01/01 | G179: 01:00-02:00 | H179: 395 | I179: 4.85
A180: 2017 | B180: 12 | C180: 2017-12-31 | D180: CEEXD-D-DAILYPRODU-171231-01 | E180: DE(TenneT)-CZ | F180: 2017/12/31 - 2018/01/01 | G180: 01:00-02:00 | H180: 381 | I180: 4.51
A181: 2017 | B181: 12 | C181: 2017-12-31 | D181: CEEXD-D-DAILYPRODU-171231-01 | E181: DE(50Hz)-CZ | F181: 2017/12/31 - 2018/01/01 | G181: 01:00-02:00 | H181: 400 | I181: 4.50
A182: 2017 | B182: 12 | C182: 2017-12-31 | D182: CEEXD-D-DAILYPRODU-171231-01 | E182: DE(TenneT)-CZ | F182: 2017/12/31 - 2018/01/01 | G182: 01:00-02:00 | H182: 406 | I182: 4.42
A183: 2017 | B183: 12 | C183: 2017-12-31 | D183: CEEXD-D-DAILYPRODU-171231-01 | E183: DE(TenneT)-CZ | F183: 2017/12/31 - 2018/01/01 | G183: 01:00-02:00 | H183: 428 | I183: 3.55
A184: 2017 | B184: 12 | C184: 2017-12-31 | D184: CEEXD-D-DAILYPRODU-171231-01 | E184: DE(50Hz)-CZ | F184: 2017/12/31 - 2018/01/01 | G184: 01:00-02:00 | H184: 422 | I184: 3.55
A185: 2017 | B185: 12 | C185: 2017-12-31 | D185: CEEXD-D-DAILYPRODU-171231-01 | E185: DE(TenneT)-CZ | F185: 2017/12/31 - 2018/01/01 | G185: 01:00-02:00 | H185: 453 | I185: 3.49
A186: 2017 | B186: 12 | C186: 2017-12-31 | D186: CEEXD-D-DAILYPRODU-171231-01 | E186: DE(TenneT)-CZ | F186: 2017/12/31 - 2018/01/01 | G186: 01:00-02:00 | H186: 495 | I186: 3.22
A187: 2017 | B187: 12 | C187: 2017-12-31 | D187: CEEXD-D-DAILYPRODU-171231-01 | E187: DE(50Hz)-CZ | F187: 2017/12/31 - 2018/01/01 | G187: 01:00-02:00 | H187: 472 | I187: 3.22
A188: 2017 | B188: 12 | C188: 2017-12-31 | D188: CEEXD-D-DAILYPRODU-171231-01 | E188: DE(TenneT)-CZ | F188: 2017/12/31 - 2018/01/01 | G188: 01:00-02:00 | H188: 500 | I188: 3.00
A189: 2017 | B189: 12 | C189: 2017-12-31 | D189: CEEXD-D-DAILYPRODU-171231-01 | E189: DE(50Hz)-CZ | F189: 2017/12/31 - 2018/01/01 | G189: 01:00-02:00 | H189: 522 | I189: 2.74
A190: 2017 | B190: 12 | C190: 2017-12-31 | D190: CEEXD-D-DAILYPRODU-171231-01 | E190: DE(50Hz)-CZ | F190: 2017/12/31 - 2018/01/01 | G190: 01:00-02:00 | H190: 527 | I190: 2.50
A191: 2017 | B191: 12 | C191: 2017-12-31 | D191: CEEXD-D-DAILYPRODU-171231-01 | E191: DE(TenneT)-CZ | F191: 2017/12/31 - 2018/01/01 | G191: 01:00-02:00 | H191: 530 | I191: 2.00
A192: 2017 | B192: 12 | C192: 2017-12-31 | D192: CEEXD-D-DAILYPRODU-171231-01 | E192: DE(TenneT)-CZ | F192: 2017/12/31 - 2018/01/01 | G192: 01:00-02:00 | H192: 555 | I192: 1.93
A193: 2017 | B193: 12 | C193: 2017-12-31 | D193: CEEXD-D-DAILYPRODU-171231-01 | E193: DE(TenneT)-CZ | F193: 2017/12/31 - 2018/01/01 | G193: 01:00-02:00 | H193: 565 | I193: 1.90
A194: 2017 | B194: 12 | C194: 2017-12-31 | D194: CEEXD-D-DAILYPRODU-171231-01 | E194: DE(50Hz)-CZ | F194: 2017/12/31 - 2018/01/01 | G194: 01:00-02:00 | H194: 577 | I194: 1.67
A195: 2017 | B195: 12 | C195: 2017-12-31 | D195: CEEXD-D-DAILYPRODU-171231-01 | E195: DE(50Hz)-CZ | F195: 2017/12/31 - 2018/01/01 | G195: 01:00-02:00 | H195: 599 | I195: 1.66
A196: 2017 | B196: 12 | C196: 2017-12-31 | D196: CEEXD-D-DAILYPRODU-171231-01 | E196: DE(TenneT)-CZ | F196: 2017/12/31 - 2018/01/01 | G196: 01:00-02:00 | H196: 587 | I196: 1.66
A197: 2017 | B197: 12 | C197: 2017-12-31 | D197: CEEXD-D-DAILYPRODU-171231-01 | E197: DE(50Hz)-CZ | F197: 2017/12/31 - 2018/01/01 | G197: 01:00-02:00 | H197: 649 | I197: 1.55
A198: 2017 | B198: 12 | C198: 2017-12-31 | D198: CEEXD-D-DAILYPRODU-171231-01 | E198: DE(50Hz)-CZ | F198: 2017/12/31 - 2018/01/01 | G198: 01:00-02:00 | H198: 659 | I198: 1.50
A199: 2017 | B199: 12 | C199: 2017-12-31 | D199: CEEXD-D-DAILYPRODU-171231-01 | E199: DE(50Hz)-CZ | F199: 2017/12/31 - 2018/01/01 | G199: 01:00-02:00 | H199: 664 | I199: 1.13
A200: 2017 | B200: 12 | C200: 2017-12-31 | D200: CEEXD-D-DAILYPRODU-171231-01 | E200: DE(TenneT)-CZ | F200: 2017/12/31 - 2018/01/01 | G200: 01:00-02:00 | H200: 592 | I200: 1.13
... 4448 more rows
